Workbook

Sheet Filtro
A1: IdEstablecimiento | B1: (Todas)
A2: Comuna | B2: (Todas)
A3: Mes | B3: (Todas)
A5: Etiquetas de fila | B5: Suma de Col01 | C5: Suma de Col02 | D5: Suma de Col03 | E5: Suma de Col04 | F5: Suma de Col05 | G5: Suma de Col06 | H5: Suma de Col07 | I5: Suma de Col08 | J5: Suma de Col09 | K5: Suma de Col10
A6: 18010100 | B6: 17472 | C6: 0 | D6: 17472
A7: 18010200 | B7: 61089 | C7: 447 | D7: 60642
A8: 18010500 | B8: 579 | C8: 0 | D8: 579
A9: 18010601 | B9: 4281 | C9: 0 | D9: 4281
A10: 18010800 | B10: 615 | C10: 0 | D10: 615
A11: 18010900 | B11: 21279 | C11: 267 | D11: 21012
A12: 18011001 | B12: 9050 | C12: 8363 | D12: 687
A13: 18011002 | B13: 514 | C13: 0 | D13: 514
A14: 18020200 | B14: 27 | C14: 22 | D14: 5
A15: 18020300 | B15: 2178 | C15: 1208 | D15: 970
A16: 18020400 | B16: 202 | C16: 0 | D16: 202
A17: 18020500 | B17: 23205 | C17: 4767 | D17: 18438
A18: 18020600 | B18: 31 | C18: 25 | D18: 6
A19: 18020700 | B19: 272 | C19: 195 | D19: 77
A20: 18020800 | B20: 237 | C20: 233 | D20: 4
A21: 18020900 | B21: 147 | C21: 0 | D21: 147
A22: 18030000 | B22: 1088 | C22: 888 | D22: 200
A23: 18040100 | B23: 883 | C23: 76 | D23: 807
A24: 18040200 | B24: 194 | C24: 19 | D24: 175
A25: 18050100 | B25: 17867 | C25: 3210 | D25: 14657
A26: 18050200 | B26: 452 | C26: 81 | D26: 371
A27: 18050300 | B27: 117 | C27: 74 | D27: 43
A28: 18050400 | B28: 1654 | C28: 62 | D28: 1592
A29: 18050500 | B29: 10353 | C29: 374 | D29: 9979
A30: 18070100 | B30: 20 | C30: 7 | D30: 13
A31: 18070300 | B31: 158 | C31: 66 | D31: 83 | E31: 0 | F31: 1 | G31: 5 | H31: 3
A32: 18090000 | B32: 5618 | C32: 367 | D32: 5251
A33: 18090100 | B33: 12167 | C33: 0 | D33: 12167
A34: 18090200 | B34: 1266 | C34: 331
A35: 18400400 | B35: 61 | C35: 57 | D35: 4
A36: 18400500 | B36: 208 | C36: 0 | D36: 208
A37: 18400700 | B37: 135743
A38: 18400900 | B38: 1331 | C38: 228 | D38: 1103
A39: 18700100 | B39: 24 | C39: 0 | D39: 21 | E39: 3
A40: 18700240 | B40: 6 | D40: 6
A41: 18700250 | B41: 159 | D41: 159
A42: 18700260 | B42: 4 | D42: 4
A43: 18700270 | B43: 164 | D43: 164
A44: 18700280 | B44: 6 | D44: 6
A45: 18700290 | B45: 120 | D45: 120
A46: 18700300 | B46: 14 | D46: 14
A47: 18700310 | B47: 124 | D47: 124
A48: 18700330 | B48: 52 | D48: 52
A49: 18700340 | B49: 3 | D49: 3
A50: 18700350 | B50: 42 | D50: 42
A51: 80106002 | B51: 17867 | C51: 3210 | D51: 14657 | E51: 44 | F51: 16530 | G51: 192
A52: 80106005 | B52: 452 | C52: 81 | D52: 371 | E52: 19 | F52: 395 | G52: 0
A53: 80106006 | B53: 117 | C53: 74 | D53: 43 | E53: 0 | F53: 102
A54: 80106007 | B54: 148 | C54: 85 | D54: 63 | E54: 12 | F54: 116
A55: 80106008 | B55: 131 | C55: 66 | D55: 65 | E55: 17 | F55: 83 | G55: 0
A56: 80106009 | B56: 5 | C56: 4 | D56: 1 | E56: 1 | F56: 4
A57: 80106010 | B57: 178 | C57: 6 | D57: 172 | E57: 78 | F57: 55
A58: 80106011 | B58: 3 | C58: 2 | D58: 1 | F58: 3
A59: 80106012 | B59: 9 | C59: 9 | D59: 0 | E59: 3 | F59: 6
A60: 80106013 | B60: 473 | C60: 321 | D60: 152 | E60: 18 | F60: 445 | G60: 0
A61: 80106014 | B61: 61257 | C61: 35692 | D61: 25565 | E61: 456 | F61: 57606 | G61: 380
A62: 80106015 | B62: 10144 | C62: 8398 | D62: 1746 | E62: 10 | F62: 9120 | G62: 0
A63: 80106017 | B63: 10353 | C63: 374 | D63: 9979 | E63: 10 | F63: 10232 | G63: 0
A64: 80106020 | B64: 609 | C64: 424 | D64: 185 | E64: 3 | F64: 545 | G64: 0
A65: 80106021 | B65: 53 | C65: 15 | D65: 38 | E65: 0 | F65: 50
A66: 80106022 | B66: 492 | C66: 218 | D66: 274 | E66: 2 | F66: 457 | G66: 0
A67: 80106023 | B67: 5618 | C67: 367 | D67: 5251 | E67: 0 | F67: 5447 | G67: 0
A68: 80106024 | B68: 1654 | C68: 62 | D68: 1592 | E68: 0 | F68: 1556 | G68: 0
A69: 80301002 | B69: 0 | E69: 1
A70: 80301011 | B70: 1 | D70: 1 | E70: 56
A71: 80301014 | B71: 0 | E71: 12
A72: 80301015 | B72: 0 | E72: 297
A73: 80301034 | B73: 238 | D73: 238 | E73: 445
A74: 80301035 | B74: 0 | E74: 478
A75: 80301036 | B75: 649 | D75: 649 | E75: 7002
A76: 80301038 | B76: 380 | D76: 380 | E76: 5702
A77: 80301041 | B77: 5282 | D77: 5282 | E77: 10137
A78: 80301045 | B78: 10091 | D78: 10091 | E78: 12283
A79: 80301046 | B79: 0 | E79: 337
A80: 80301059 | B80: 587 | D80: 587 | E80: 555
A81: 80301065 | B81: 7 | D81: 7 | E81: 1
A82: 80301067 | B82: 34 | D82: 34 | E82: 5
A83: 80301075 | B83: 0 | E83: 106
A84: 80301083 | B84: 0 | E84: 26
A85: 80301085 | B85: 183 | D85: 183 | E85: 297
A86: 80301086 | B86: 15 | D86: 15 | E86: 364
A87: 80301087 | B87: 5 | D87: 5 | E87: 610
A88: 80301088 | B88: 0 | E88: 2
A89: 80302005 | B89: 5273 | D89: 5273 | E89: 6932
A90: 80302008 | B90: 0 | E90: 3
A91: 80302012 | B91: 24 | D91: 24 | E91: 146
A92: 80302013 | B92: 131 | D92: 131 | E92: 1383
A93: 80302015 | B93: 36 | D93: 36 | E93: 300
A94: 80302022 | B94: 0 | E94: 694
A95: 80302023 | B95: 7943 | D95: 7943 | E95: 17178
A96: 80302024 | B96: 26 | D96: 26 | E96: 72
A97: 80302026 | B97: 0 | E97: 41
A98: 80302028 | B98: 3 | D98: 3
A99: 80302030 | B99: 50 | D99: 50 | E99: 369
A100: 80302032 | B100: 14930 | D100: 14930 | E100: 15301
A101: 80302034 | B101: 9036 | D101: 9036 | E101: 11094
A102: 80302035 | B102: 0 | E102: 30
A103: 80302040 | B103: 47 | D103: 47 | E103: 1341
A104: 80302042 | B104: 0 | E104: 193
A105: 80302045 | B105: 2 | D105: 2 | E105: 286
A106: 80302047 | B106: 11416 | C106: 447 | D106: 10969 | E106: 22408
A107: 80302048 | B107: 832 | D107: 832 | E107: 1953
A108: 80302050 | B108: 0 | E108: 3
A109: 80302051 | B109: 0 | E109: 7
A110: 80302053 | B110: 0 | E110: 2
A111: 80302054 | B111: 0 | E111: 7
A112: 80302057 | B112: 5009 | D112: 5009 | E112: 7271
A113: 80302059 | B113: 189 | D113: 189
A114: 80302060 | B114: 171 | D114: 171 | E114: 618
A115: 80302063 | B115: 43 | D115: 43 | E115: 2931
A116: 80302064 | B116: 257 | D116: 257 | E116: 10873
A117: 80302065 | B117: 0 | E117: 28
A118: 80302067 | B118: 713 | D118: 713 | E118: 11663
A119: 80302068 | B119: 203 | D119: 203 | E119: 9772
A120: 80302069 | B120: 0 | E120: 828
A121: 80302075 | B121: 2 | D121: 2 | E121: 303
A122: 80302076 | B122: 4753 | D122: 4753 | E122: 4541
A123: 80303015 | B123: 0 | E123: 1093
A124: 80303024 | B124: 6856 | D124: 6856 | E124: 13188
A125: 80303025 | B125: 0 | E125: 11
A126: 80303026 | B126: 5117 | D126: 5117 | E126: 5082
A127: 80303027 | B127: 120 | D127: 120 | E127: 2
A128: 80303028 | B128: 74 | D128: 74 | E128: 3
A129: 80305004 | B129: 0 | E129: 1
A130: 80305005 | B130: 0 | E130: 304
A131: 80305009 | B131: 0 | E131: 1
A132: 80305012 | B132: 0 | E132: 2
A133: 80305019 | B133: 271 | D133: 271 | E133: 596
A134: 80305020 | B134: 2 | D134: 2 | E134: 85
A135: 80305030 | B135: 1 | D135: 1 | E135: 23
A136: 80305070 | B136: 305 | D136: 305 | E136: 1268
A137: 80305170 | B137: 0 | E137: 1
A138: 80306001 | B138: 0 | E138: 34
A139: 80306002 | B139: 0 | E139: 172
A140: 80306004 | B140: 8 | D140: 8
A141: 80306005 | B141: 56 | D141: 56
A142: 80306007 | B142: 42 | D142: 42 | E142: 29
A143: 80306008 | B143: 56 | D143: 56 | E143: 11
A144: 80306011 | B144: 1973 | D144: 1973 | E144: 3320
A145: 80306018 | B145: 0 | E145: 9
A146: 80306022 | B146: 0 | E146: 1
A147: 80306026 | B147: 373 | D147: 373
A148: 80306038 | B148: 1142 | D148: 1142 | E148: 1010
A149: 80306041 | B149: 0 | E149: 2
A150: 80306042 | B150: 174 | D150: 174 | E150: 2309
A151: 80306045 | B151: 0 | E151: 2
A152: 80306047 | B152: 0 | E152: 15
A153: 80306048 | B153: 51 | D153: 51 | E153: 142
A154: 80306049 | B154: 0 | E154: 20
A155: 80306051 | B155: 29 | D155: 29 | E155: 52
A156: 80306052 | B156: 0 | E156: 15
A157: 80306059 | B157: 49 | D157: 49 | E157: 1
A158: 80306061 | B158: 308 | D158: 308 | E158: 784
A159: 80306064 | B159: 0 | E159: 3
A160: 80306066 | B160: 0 | E160: 5
A161: 80306075 | B161: 0 | E161: 62
A162: 80306077 | B162: 1 | D162: 1 | E162: 4
A163: 80306078 | B163: 0 | E163: 223
A164: 80306079 | B164: 5 | D164: 5 | E164: 155
A165: 80306080 | B165: 0 | E165: 10
A166: 80306081 | B166: 0 | E166: 10
A167: 80306117 | B167: 8 | D167: 8
A168: 80306169 | B168: 4 | D168: 4 | E168: 328
A169: 80306170 | B169: 2 | D169: 2
A170: 80307011 | B170: 52086 | C170: 1041 | D170: 51045 | E170: 21671
A171: 80307012 | B171: 1955 | C171: 31 | D171: 1924 | E171: 469
A172: 80308001 | B172: 0 | E172: 9
A173: 80308004 | B173: 27 | D173: 27 | E173: 232
A174: 80308005 | B174: 18 | D174: 18 | E174: 25
A175: 80308010 | B175: 501 | D175: 501
A176: 80308018 | B176: 0 | E176: 3
A177: 80308044 | B177: 69 | D177: 69 | E177: 22
A178: 80309004 | B178: 0 | E178: 185
A179: 80309008 | B179: 0 | E179: 2
A180: 80309010 | B180: 5916 | D180: 5916 | E180: 6371
A181: 80309012 | B181: 0 | E181: 47
A182: 80309013 | B182: 6019 | D182: 6019 | E182: 7612
A183: 80309014 | B183: 64 | C183: 34 | D183: 30 | E183: 21
A184: 80309015 | B184: 0 | E184: 2
A185: 80309016 | B185: 191 | D185: 191
A186: 80309022 | B186: 8777 | C186: 48 | D186: 8729 | E186: 15625
A187: 80309023 | B187: 52 | C187: 50 | D187: 2 | E187: 1084
A188: 80309024 | B188: 135 | C188: 135 | E188: 839
A189: 80309028 | B189: 125 | D189: 125 | E189: 1942
A190: 80401001 | B190: 3 | C190: 3
A191: 80401002 | B191: 42 | C191: 42 | E191: 41
A192: 80401009 | B192: 140 | C192: 130 | D192: 10 | E192: 53
A193: 80401010 | B193: 282 | D193: 282 | E193: 350
A194: 80401013 | B194: 244 | C194: 244 | E194: 65
A195: 80401014 | B195: 17 | C195: 17 | E195: 1
A196: 80401028 | B196: 8 | C196: 8
A197: 80401029 | B197: 3 | C197: 3
A198: 80401031 | B198: 345 | C198: 345 | E198: 105
A199: 80401032 | B199: 378 | C199: 378 | E199: 74
A200: 80401033 | B200: 22 | C200: 22 | E200: 3
A201: 80401042 | B201: 205 | C201: 205 | E201: 73
... 71 more rows

Sheet NOMBRE (hidden)
A1: DATOS DEL ESTABLECIMIENTO | C1: CÓDIGOS
A2: NOMBRE DE COMUNA | I2: =IF(OR(NOMBRE!C2="",NOMBRE!D2="",NOMBRE!E2="",NOMBRE!F2="",NOMBRE!G2=""),"Falta Cód. Com.","") -> Falta Cód. Com. | AG2: =IF(I2>"",1,0) -> 1
A3: NOMBRE ESTABLECIMIENTO/ESTRATEGIA | I3: =IF(OR(NOMBRE!C3="",NOMBRE!D3="",NOMBRE!E3="",NOMBRE!F3="",NOMBRE!G3="",NOMBRE!H3=""),"Falta Cód. Est.","") -> Falta Cód. Est. | AG3: =IF(I3>"",1,0) -> 1
A6: MES: | I6: =IF(OR(NOMBRE!C6="",NOMBRE!D6=""),"Falta Cód. Mes.","") -> Falta Cód. Mes. | AG6: =IF(I6>"",1,0) -> 1
A7: AÑO: | B7: 2024 | AG7: =SUM(AG2:AG6) -> 3
A9: Versión 1.0 FEBRERO 2024
A11: Director/a Servicio de Salud o Director/a Establecimiento | AA11: ENERO | AB11: Establecimiento de Mayor Complejidad (EMAYC) | AC11: SERVICIO DE SALUD
A12: Jefe/a de Estadísticas | AA12: FEBRERO | AB12: Establecimiento de Mediana Complejidad (EMEDC) | AC12: MUNICIPAL
AA13: MARZO | AB13: Establecimiento de Menor Complejidad (EMENC) | AC13: OTRA INSTITUCION (Delegado)
A14: MINSAL - DEIS | AA14: ABRIL | AB14: Centros de Diagnóstico Terapeutico (CDT)
AA15: MAYO | AB15: Centro de Referencia de Salud (CRS)
AA16: JUNIO | AB16: Centro de Salud Familiar
B17: SERIE BM ESTABLECIMIENTOS AREA MUNICIPAL | AA17: JULIO | AB17: Consultorio General Urbano (CGU)
AA18: AGOSTO | AB18: Consultorio General Urbano (CGU) - CESFAM
AA19: SEPTIEMBRE | AB19: Consultorio General Urbano(CGU) con SAPU/SUR/SAR
AA20: OCTUBRE | AB20: Consultorio General Urbano (CGU) - CESFAM con SAPU/SAR
AA21: NOVIEMBRE | AB21: Consultorio General Rural (CGR)
AA22: DICIEMBRE | AB22: Consultorio General Rural (CGR) - CESFAM
AB23: Consultorio General Rural (CGR) con SAPU/SAR/SUR
AB24: Consultorio General Rural (CGR) - CESFAM con SAPU/SAR/SUR
AB25: Posta de Salud Rural (PSR)
AB26: Centro Comunitario de Salud Familiar (CECOF)
AB27: Consultorio de Salud Mental (COSAM)
AB28: Programa de Reparación y Atención Integral de Salud (PRAIS)
AB29: Centro de Atención Funcionarios (CAF)
AB30: Unidad de Salud de Funcionarios (USF)
AB31: ClÍnica Dental Móvil (CDM)
AB32: Dirección Servicio de Salud (DSS)
AB33: Servicio de Atención Primaria de Urgencia (SAPU)
AB34: Servicio de Urgencia Rural (SUR)
AB35: Servicio de Alta Resolución SAR
AB36: Laboratorio Clínico o Dental
AB37: Servicio de Atención Primaria de Urgencia Dental (SAPUDENT)
AB38: Centro de Rehabilitación (CR)
AB39: Hospital de Campaña
AB40: Centro Oncologico
AB41: SAMU
AB42: Centro de salud Urbano (CSU)

Sheet BM18
B1: SERVICIO DE SALUD
B2: =CONCATENATE("COMUNA: ",NOMBRE!B2," ","( ",NOMBRE!C2,NOMBRE!D2,NOMBRE!E2,NOMBRE!F2,NOMBRE!G2," )") -> COMUNA: ( )
B3: =CONCATENATE("ESTABLECIMIENTO/ESTRATEGIA: ",NOMBRE!B3," ","( ",NOMBRE!C3,NOMBRE!D3,NOMBRE!E3,NOMBRE!F3,NOMBRE!G3,NOMBRE!H3," )") -> ESTABLECIMIENTO/ESTRATEGIA: ( )
B4: =CONCATENATE("MES: ",NOMBRE!B6," ","( ",NOMBRE!C6,NOMBRE!D6," )") -> MES: ( )
B5: =CONCATENATE("AÑO: ",NOMBRE!B7) -> AÑO: 2024
B8: REM-B18. ACTIVIDADES DE APOYO DIAGNOSTICO Y TERAPEUTICO (USO EXCLUSIVO DE ESTABLECIMIENTOS MUNICIPALES)
B10: SECCIÓN A: EXÁMENES DE DIAGNOSTICO
B11: EXÁMENES | E11: TOTAL | F11: SAPU/SAR/SUR | G11: Resto Establecimientos APS
F12: Total | G12: Total
B13: TOTAL EXÁMENES LABORATORIO | E13: =SUM(F13:G13) -> 139,376 | F13: =SUM(F14:F16,F18:F19,F24:F25) -> 22,341 | G13: =SUM(G14:G16,G18:G19,G24:G25) -> 117,035
A14: 18010100 | B14: I | C14: HEMATOLÓGICOS | E14: =IFERROR(VLOOKUP($A14,Filtro!$A$5:$K$272,2,FALSE),0) -> 17,472 | F14: =IFERROR(VLOOKUP($A14,Filtro!$A$5:$K$272,3,FALSE),0) -> 0 | G14: =IFERROR(VLOOKUP($A14,Filtro!$A$5:$K$272,4,FALSE),0) -> 17,472
A15: 18010200 | B15: II | C15: BIOQUÍMICOS | E15: =IFERROR(VLOOKUP($A15,Filtro!$A$5:$K$272,2,FALSE),0) -> 61,089 | F15: =IFERROR(VLOOKUP($A15,Filtro!$A$5:$K$272,3,FALSE),0) -> 447 | G15: =IFERROR(VLOOKUP($A15,Filtro!$A$5:$K$272,4,FALSE),0) -> 60,642
A16: 18090100 | B16: III | C16: HORMONALES | E16: =IFERROR(VLOOKUP($A16,Filtro!$A$5:$K$272,2,FALSE),0) -> 12,167 | F16: =IFERROR(VLOOKUP($A16,Filtro!$A$5:$K$272,3,FALSE),0) -> 0 | G16: =IFERROR(VLOOKUP($A16,Filtro!$A$5:$K$272,4,FALSE),0) -> 12,167
B17: IV | C17: GENÉTICA
A18: 18010500 | B18: V | C18: INMUNOLÓGICOS | E18: =IFERROR(VLOOKUP($A18,Filtro!$A$5:$K$272,2,FALSE),0) -> 579 | F18: =IFERROR(VLOOKUP($A18,Filtro!$A$5:$K$272,3,FALSE),0) -> 0 | G18: =IFERROR(VLOOKUP($A18,Filtro!$A$5:$K$272,4,FALSE),0) -> 579
A19: 18010601 | B19: VI | C19: MICROBIOLÓGICOS | E19: =IFERROR(VLOOKUP($A19,Filtro!$A$5:$K$272,2,FALSE),0) -> 4,281 | F19: =IFERROR(VLOOKUP($A19,Filtro!$A$5:$K$272,3,FALSE),0) -> 0 | G19: =IFERROR(VLOOKUP($A19,Filtro!$A$5:$K$272,4,FALSE),0) -> 4,281
C20: a) BACTERIAS Y HONGOS
C21: b) PARÁSITOS
C22: c) VIRUS
B23: VII | C23: PROCEDIMIENTO O DETERMINACIÓN DIRECTA C/PACIENTE
A24: 18010800 | B24: VIII | C24: EX. DE DEPOSICIONES EXUDADOS. SECREC. Y OTROS LIQ. | E24: =IFERROR(VLOOKUP($A24,Filtro!$A$5:$K$272,2,FALSE),0) -> 615 | F24: =IFERROR(VLOOKUP($A24,Filtro!$A$5:$K$272,2,FALSE),0) -> 615 | G24: =IFERROR(VLOOKUP($A24,Filtro!$A$5:$K$272,2,FALSE),0) -> 615
A25: 18010900 | B25: IX | C25: ORINA | E25: =IFERROR(VLOOKUP($A25,Filtro!$A$5:$K$272,2,FALSE),0) -> 21,279 | F25: =IFERROR(VLOOKUP($A25,Filtro!$A$5:$K$272,2,FALSE),0) -> 21,279 | G25: =IFERROR(VLOOKUP($A25,Filtro!$A$5:$K$272,2,FALSE),0) -> 21,279
B26: TOTAL EXÁMENES IMAGENOLOGIA | E26: =SUM(F26:G26) -> 9,564 | F26: =SUM(F27+F28+F44) -> 8,363 | G26: =SUM(G27+G28) -> 1,201
A27: 18011001 | B27: a) | C27: EX. RADIOLÓGICOS SIMPLES | E27: =IFERROR(VLOOKUP($A27,Filtro!$A$5:$K$272,2,FALSE),0) -> 9,050 | F27: =IFERROR(VLOOKUP($A27,Filtro!$A$5:$K$272,3,FALSE),0) -> 8,363 | G27: =IFERROR(VLOOKUP($A27,Filtro!$A$5:$K$272,4,FALSE),0) -> 687
A28: 18011002 | C28: Ecotomografías | E28: =IFERROR(VLOOKUP($A28,Filtro!$A$5:$K$272,2,FALSE),0) -> 514 | F28: =IFERROR(VLOOKUP($A28,Filtro!$A$5:$K$272,3,FALSE),0) -> 0 | G28: =IFERROR(VLOOKUP($A28,Filtro!$A$5:$K$272,4,FALSE),0) -> 514
A29: 18400500 | C29: Ecotomografías abdominal | E29: =IFERROR(VLOOKUP($A29,Filtro!$A$5:$K$272,2,FALSE),0) -> 208 | F29: =IFERROR(VLOOKUP($A29,Filtro!$A$5:$K$272,3,FALSE),0) -> 0 | G29: =IFERROR(VLOOKUP($A29,Filtro!$A$5:$K$272,4,FALSE),0) -> 208
A30: 18700240 | C30: Ecografías Obstétrica Primer Trimestre (<11 semanas) | D30: Médico/a | E30: =IFERROR(VLOOKUP($A30,Filtro!$A$5:$K$272,2,FALSE),0) -> 6 | F30: =IFERROR(VLOOKUP($A30,Filtro!$A$5:$K$272,3,FALSE),0) -> 0 | G30: =IFERROR(VLOOKUP($A30,Filtro!$A$5:$K$272,4,FALSE),0) -> 6
A31: 18700250 | D31: Matrón/a | E31: =IFERROR(VLOOKUP($A31,Filtro!$A$5:$K$272,2,FALSE),0) -> 159 | F31: =IFERROR(VLOOKUP($A31,Filtro!$A$5:$K$272,3,FALSE),0) -> 0 | G31: =IFERROR(VLOOKUP($A31,Filtro!$A$5:$K$272,4,FALSE),0) -> 159
A32: 18700260 | C32: Ecografias Obstétricas Primer Trimestre (11 - 14 semanas) | D32: Médico/a | E32: =IFERROR(VLOOKUP($A32,Filtro!$A$5:$K$272,2,FALSE),0) -> 4 | F32: =IFERROR(VLOOKUP($A32,Filtro!$A$5:$K$272,3,FALSE),0) -> 0 | G32: =IFERROR(VLOOKUP($A32,Filtro!$A$5:$K$272,4,FALSE),0) -> 4
A33: 18700270 | D33: Matrón/a | E33: =IFERROR(VLOOKUP($A33,Filtro!$A$5:$K$272,2,FALSE),0) -> 164 | F33: =IFERROR(VLOOKUP($A33,Filtro!$A$5:$K$272,3,FALSE),0) -> 0 | G33: =IFERROR(VLOOKUP($A33,Filtro!$A$5:$K$272,4,FALSE),0) -> 164
A34: 18700280 | C34: Ecografias Obstétricas Segundo Trimestre (22 - 24 semanas) | D34: Médico/a | E34: =IFERROR(VLOOKUP($A34,Filtro!$A$5:$K$272,2,FALSE),0) -> 6 | F34: =IFERROR(VLOOKUP($A34,Filtro!$A$5:$K$272,3,FALSE),0) -> 0 | G34: =IFERROR(VLOOKUP($A34,Filtro!$A$5:$K$272,4,FALSE),0) -> 6
A35: 18700290 | D35: Matrón/a | E35: =IFERROR(VLOOKUP($A35,Filtro!$A$5:$K$272,2,FALSE),0) -> 120 | F35: =IFERROR(VLOOKUP($A35,Filtro!$A$5:$K$272,3,FALSE),0) -> 0 | G35: =IFERROR(VLOOKUP($A35,Filtro!$A$5:$K$272,4,FALSE),0) -> 120
A36: 18700300 | C36: Ecografias Obstétricas Tercer Trimestre (30 - 34 semanas) | D36: Médico/a | E36: =IFERROR(VLOOKUP($A36,Filtro!$A$5:$K$272,2,FALSE),0) -> 14 | F36: =IFERROR(VLOOKUP($A36,Filtro!$A$5:$K$272,3,FALSE),0) -> 0 | G36: =IFERROR(VLOOKUP($A36,Filtro!$A$5:$K$272,4,FALSE),0) -> 14
A37: 18700310 | D37: Matrón/a | E37: =IFERROR(VLOOKUP($A37,Filtro!$A$5:$K$272,2,FALSE),0) -> 124 | F37: =IFERROR(VLOOKUP($A37,Filtro!$A$5:$K$272,3,FALSE),0) -> 0 | G37: =IFERROR(VLOOKUP($A37,Filtro!$A$5:$K$272,4,FALSE),0) -> 124
C38: Total Ecografías Obstétricas por profesional | D38: Médico/a | E38: =IFERROR(VLOOKUP($A38,Filtro!$A$5:$K$272,2,FALSE),0) -> 0 | F38: =IFERROR(VLOOKUP($A38,Filtro!$A$5:$K$272,3,FALSE),0) -> 0 | G38: =IFERROR(VLOOKUP($A38,Filtro!$A$5:$K$272,4,FALSE),0) -> 0
D39: Matrón/a | E39: =IFERROR(VLOOKUP($A39,Filtro!$A$5:$K$272,2,FALSE),0) -> 0 | F39: =IFERROR(VLOOKUP($A39,Filtro!$A$5:$K$272,3,FALSE),0) -> 0 | G39: =IFERROR(VLOOKUP($A39,Filtro!$A$5:$K$272,4,FALSE),0) -> 0
A40: 18700320 | C40: Ecografía de seguimiento DIU (Regulación de la Fertilidad) | D40: Médico/a | E40: =IFERROR(VLOOKUP($A40,Filtro!$A$5:$K$272,2,FALSE),0) -> 0 | F40: =IFERROR(VLOOKUP($A40,Filtro!$A$5:$K$272,3,FALSE),0) -> 0 | G40: =IFERROR(VLOOKUP($A40,Filtro!$A$5:$K$272,4,FALSE),0) -> 0
A41: 18700330 | D41: Matrón/a | E41: =IFERROR(VLOOKUP($A41,Filtro!$A$5:$K$272,2,FALSE),0) -> 52 | F41: =IFERROR(VLOOKUP($A41,Filtro!$A$5:$K$272,3,FALSE),0) -> 0 | G41: =IFERROR(VLOOKUP($A41,Filtro!$A$5:$K$272,4,FALSE),0) -> 52
A42: 18700340 | C42: Ecografía Transvaginal (control de Climaterio y Ginecológico) | D42: Médico/a | E42: =IFERROR(VLOOKUP($A42,Filtro!$A$5:$K$272,2,FALSE),0) -> 3 | F42: =IFERROR(VLOOKUP($A42,Filtro!$A$5:$K$272,3,FALSE),0) -> 0 | G42: =IFERROR(VLOOKUP($A42,Filtro!$A$5:$K$272,4,FALSE),0) -> 3
A43: 18700350 | D43: Matrón/a | E43: =IFERROR(VLOOKUP($A43,Filtro!$A$5:$K$272,2,FALSE),0) -> 42 | F43: =IFERROR(VLOOKUP($A43,Filtro!$A$5:$K$272,3,FALSE),0) -> 0 | G43: =IFERROR(VLOOKUP($A43,Filtro!$A$5:$K$272,4,FALSE),0) -> 42
C44: Total de ecografías obstetricas y ginecologicas | E44: =SUM(E38:E43) -> 97
B46: SECCIÓN B: PROCEDIMIENTO DE APOYO CLÍNICO Y TERAPÉUTICO
B47: PROCEDIMIENTOS | C47: TOTAL | D47: SAPU/SAR/SUR | E47: Resto Establecimientos APS
D48: Total | E48: Total
A49: 18020100 | B49: PROC. DE NEUROLOGÍA | C49: =IFERROR(VLOOKUP($A49,Filtro!A$5:K$272,2,FALSE),0) -> 0 | D49: =IFERROR(VLOOKUP($A49,Filtro!$A$5:$K$272,3,FALSE),0) -> 0 | E49: =IFERROR(VLOOKUP($A49,Filtro!$A$5:$K$272,4,FALSE),0) -> 0
A50: 18400400 | B50: PROC. DE OFTALMOLOGÍA | C50: =IFERROR(VLOOKUP($A50,Filtro!A$5:K$272,2,FALSE),0) -> 61 | D50: =IFERROR(VLOOKUP($A50,Filtro!$A$5:$K$272,3,FALSE),0) -> 57 | E50: =IFERROR(VLOOKUP($A50,Filtro!$A$5:$K$272,4,FALSE),0) -> 4
A51: 18020200 | B51: PROC. DE OTORRINOLARINGOLOGÍA | C51: =IFERROR(VLOOKUP($A51,Filtro!A$5:K$272,2,FALSE),0) -> 27 | D51: =IFERROR(VLOOKUP($A51,Filtro!$A$5:$K$272,3,FALSE),0) -> 22 | E51: =IFERROR(VLOOKUP($A51,Filtro!$A$5:$K$272,4,FALSE),0) -> 5
A52: 18020300 | B52: PROC. DE NEUMOLOGÍA | C52: =IFERROR(VLOOKUP($A52,Filtro!A$5:K$272,2,FALSE),0) -> 2,178 | D52: =IFERROR(VLOOKUP($A52,Filtro!$A$5:$K$272,3,FALSE),0) -> 1,208 | E52: =IFERROR(VLOOKUP($A52,Filtro!$A$5:$K$272,4,FALSE),0) -> 970
A53: 18020400 | B53: PROC. DE DERMATOLOGÍA | C53: =IFERROR(VLOOKUP($A53,Filtro!A$5:K$272,2,FALSE),0) -> 202 | D53: =IFERROR(VLOOKUP($A53,Filtro!$A$5:$K$272,3,FALSE),0) -> 0 | E53: =IFERROR(VLOOKUP($A53,Filtro!$A$5:$K$272,4,FALSE),0) -> 202
A54: 18020500 | B54: PROC. DE CARDIOLOGÍA | C54: =IFERROR(VLOOKUP($A54,Filtro!A$5:K$272,2,FALSE),0) -> 23,205 | D54: =IFERROR(VLOOKUP($A54,Filtro!$A$5:$K$272,3,FALSE),0) -> 4,767 | E54: =IFERROR(VLOOKUP($A54,Filtro!$A$5:$K$272,4,FALSE),0) -> 18,438
A55: 18020600 | B55: PROC. DE GASTROENTEROLOGÍA | C55: =IFERROR(VLOOKUP($A55,Filtro!A$5:K$272,2,FALSE),0) -> 31 | D55: =IFERROR(VLOOKUP($A55,Filtro!$A$5:$K$272,3,FALSE),0) -> 25 | E55: =IFERROR(VLOOKUP($A55,Filtro!$A$5:$K$272,4,FALSE),0) -> 6
A56: 18020700 | B56: PROC. DE UROLOGÍA | C56: =IFERROR(VLOOKUP($A56,Filtro!A$5:K$272,2,FALSE),0) -> 272 | D56: =IFERROR(VLOOKUP($A56,Filtro!$A$5:$K$272,3,FALSE),0) -> 195 | E56: =IFERROR(VLOOKUP($A56,Filtro!$A$5:$K$272,4,FALSE),0) -> 77
A57: 18020800 | B57: PROC. ORTOPEDIA Y TRAUMATOLOGÍA | C57: =IFERROR(VLOOKUP($A57,Filtro!A$5:K$272,2,FALSE),0) -> 237 | D57: =IFERROR(VLOOKUP($A57,Filtro!$A$5:$K$272,3,FALSE),0) -> 233 | E57: =IFERROR(VLOOKUP($A57,Filtro!$A$5:$K$272,4,FALSE),0) -> 4
A58: 18020900 | B58: PROC. GINECOLOGÍA | C58: =IFERROR(VLOOKUP($A58,Filtro!A$5:K$272,2,FALSE),0) -> 147 | D58: =IFERROR(VLOOKUP($A58,Filtro!$A$5:$K$272,3,FALSE),0) -> 0 | E58: =IFERROR(VLOOKUP($A58,Filtro!$A$5:$K$272,4,FALSE),0) -> 147
B59: TOTAL | C59: =SUM(C49:C58) -> 26,360 | D59: =SUM(D49:D58) -> 6,507 | E59: =SUM(E49:E58) -> 19,853
B61: SECCIÓN C: INTERVENCIONES QUIRÚRGICAS MENORES
D62: TOTAL | E62: SAPU/SAR/SUR | F62: Resto Establecimientos APS
E63: Total
A64: 18030000 | B64: TOTAL INTERVENCIONES QUIRÚRGICAS MENORES (SUB-GRUPO TEGUMENTOS) | D64: =SUM(E64:F64) -> 1,088 | E64: =IFERROR(VLOOKUP($A64,Filtro!$A$5:$K$272,3,FALSE),0) -> 888 | F64: =IFERROR(VLOOKUP($A64,Filtro!$A$5:$K$272,4,FALSE),0) -> 200
B65: SECCIÓN D : INTERVENCIONES QUIRÚRGICAS MENORES, POR EDAD
B66: INTERVENCIONES QUIRÚRGICAS | C66: TOTAL | D66: < 15 AÑOS | E66: 15 Y + AÑOS
B67: TOTAL | C67: =SUM(D67:E67) -> 1,077 | D67: =SUM(D68:D69) -> 95 | E67: =SUM(E68:E69) -> 982 | F67: =V67 -> El Total de Intervenciones Quirúrgicas de la Sección C debe coincidir con el Total de la Seccion D | V67: =IF(C67=D64,"","El Total de Intervenciones Quirúrgicas de la Sección C debe coincidir con el Total de la Seccion D") -> El Total de Intervenciones Quirúrgicas de la Sección C debe coincidir con el Total de la Seccion D | W67: =IF(C67=D64,0,1) -> 1
A68: 18040100 | B68: SAPU/SAR | C68: =SUM(D68:E68) -> 883 | D68: =IFERROR(VLOOKUP($A68,Filtro!$A$5:$K$272,3,FALSE),0) -> 76 | E68: =IFERROR(VLOOKUP($A68,Filtro!$A$5:$K$272,4,FALSE),0) -> 807 | F68: =V68 -> El Total de Intervenciones Quirúrgicas menores SAPU/SAR debe coincidir con el Total de Intervenciones Quirúrgicas menores SAPU/SAR/SUR de la Sección C. | V68: =IF(C68=E64,"","El Total de Intervenciones Quirúrgicas menores SAPU/SAR debe coincidir con el Total de Intervenciones Quirúrgicas menores SAPU/SAR/SUR de la Sección C. ") -> El Total de Intervenciones Quirúrgicas menores SAPU/SAR debe coincidir con el Total de Intervenciones Quirúrgicas menores SAPU/SAR/SUR de la Sección C. | W68: =IF(C67<>BM18A!D585,1,0) -> 1
A69: 18040200 | B69: RESTO ESTABLECIMIENTOS APS | C69: =SUM(D69:E69) -> 194 | D69: =IFERROR(VLOOKUP($A69,Filtro!$A$5:$K$272,3,FALSE),0) -> 19 | E69: =IFERROR(VLOOKUP($A69,Filtro!$A$5:$K$272,4,FALSE),0) -> 175 | F69: * El Total de Intervenciones Quirúrgicas menores NO SAPU debe coincidir con el Total de Intervenciones Quirúrgicas menores NO SAPU/NO SUR de la Sección C. | V69: =IF(C69=F64,""," * El Total de Intervenciones Quirúrgicas menores NO SAPU debe coincidir con el Total de Intervenciones Quirúrgicas menores NO SAPU/NO SUR de la Sección C. ") -> * El Total de Intervenciones Quirúrgicas menores NO SAPU debe coincidir con el Total de Intervenciones Quirúrgicas menores NO SAPU/NO SUR de la Sección C. | W69: =IF(C69<>BM18A!E586,1,0) -> 1
B70: SECCIÓN E: MISCELÁNEOS
B71: MISCELÁNEOS | C71: TOTAL | D71: SAPU/SAR/SUR | E71: Resto Establecimientos APS
D72: Total | E72: Total
A73: 18090000 | B73: PROCEDIMIENTOS DE PODOLOGIA | C73: =SUM(D73:E73) -> 5,618 | D73: =IFERROR(VLOOKUP($A73,Filtro!$A$5:$K$272,3,FALSE),0) -> 367 | E73: =IFERROR(VLOOKUP($A73,Filtro!$A$5:$K$272,4,FALSE),0) -> 5,251
A74: 18050100 | B74: CURACIÓN SIMPLE AMBULATORIA | C74: =SUM(D74:E74) -> 17,867 | D74: =IFERROR(VLOOKUP($A74,Filtro!$A$5:$K$272,3,FALSE),0) -> 3,210 | E74: =IFERROR(VLOOKUP($A74,Filtro!$A$5:$K$272,4,FALSE),0) -> 14,657
A75: 18050400 | B75: CURACION AVANZADA UV | C75: 1,654 | D75: =IFERROR(VLOOKUP($A75,Filtro!$A$5:$K$272,3,FALSE),0) -> 62 | E75: =IFERROR(VLOOKUP($A75,Filtro!$A$5:$K$272,4,FALSE),0) -> 1,592
A76: 18050500 | B76: CURACION COMPLEJA | C76: 10,353 | D76: =IFERROR(VLOOKUP($A76,Filtro!$A$5:$K$272,3,FALSE),0) -> 374 | E76: =IFERROR(VLOOKUP($A76,Filtro!$A$5:$K$272,4,FALSE),0) -> 9,979
A77: 18050200 | B77: AUTOCONTROL PERSONAS CON DIABETES INSULINO DEPENDIENTE (D.I.D. MENSUAL) | C77: 452 | D77: =IFERROR(VLOOKUP($A77,Filtro!$A$5:$K$272,3,FALSE),0) -> 81 | E77: =IFERROR(VLOOKUP($A77,Filtro!$A$5:$K$272,4,FALSE),0) -> 371
A78: 18050300 | B78: OXIGENOTERAPIA A DOMICILIO | C78: =SUM(D78:E78) -> 117 | D78: =IFERROR(VLOOKUP($A78,Filtro!$A$5:$K$272,3,FALSE),0) -> 74 | E78: =IFERROR(VLOOKUP($A78,Filtro!$A$5:$K$272,4,FALSE),0) -> 43
B79: SECCIÓN F: PRESCRIPCIONES ADMINISTRADAS EN URGENCIA
B80: ATENCIÓN | C80: TOTAL
A82: 18400700 | B82: URGENCIA SAPU/SAR/SUR | C82: =IFERROR(VLOOKUP($A82,Filtro!$A$5:$K$272,2,FALSE),0) -> 135,743
B83: SECCIÓN G : OTRAS ATENCIONES A PACIENTES AMBULATORIOS
B84: TIPO DE ATENCIÓN | C84: TOTAL | D84: ATENCIONES POR EDAD
D85: < 1 año | E85: 1 - 4 años | F85: 5 a 9 años | G85: 10 a 19 años | H85: 20 a 64 años | I85: 65 años y más
A86: 18070100 | B86: POR TERAPÉUTICA OCUPACIONAL | C86: =SUM(D86:I86) -> 20 | D86: =IFERROR(VLOOKUP($A86,Filtro!$A$5:$K$272,3,FALSE),0) -> 7 | E86: =IFERROR(VLOOKUP($A86,Filtro!$A$5:$K$272,4,FALSE),0) -> 13 | F86: =IFERROR(VLOOKUP($A86,Filtro!$A$5:$K$272,5,FALSE),0) -> 0 | G86: =IFERROR(VLOOKUP($A86,Filtro!$A$5:$K$272,6,FALSE),0) -> 0 | H86: =IFERROR(VLOOKUP($A86,Filtro!$A$5:$K$272,7,FALSE),0) -> 0 | I86: =IFERROR(VLOOKUP($A86,Filtro!$A$5:$K$272,8,FALSE),0) -> 0
A87: 18070300 | B87: POR KINESIOLOGO (NO SAPU) | C87: =SUM(D87:I87) -> 158 | D87: =IFERROR(VLOOKUP($A87,Filtro!$A$5:$K$272,3,FALSE),0) -> 66 | E87: =IFERROR(VLOOKUP($A87,Filtro!$A$5:$K$272,4,FALSE),0) -> 83 | F87: =IFERROR(VLOOKUP($A87,Filtro!$A$5:$K$272,5,FALSE),0) -> 0 | G87: =IFERROR(VLOOKUP($A87,Filtro!$A$5:$K$272,6,FALSE),0) -> 1 | H87: =IFERROR(VLOOKUP($A87,Filtro!$A$5:$K$272,7,FALSE),0) -> 5 | I87: =IFERROR(VLOOKUP($A87,Filtro!$A$5:$K$272,8,FALSE),0) -> 3
A88: 18400900 | B88: POR EDUCADORA DE PÁRVULO/DIFERENCIAL | C88: =SUM(D88:E88) -> 1,331 | D88: =IFERROR(VLOOKUP($A88,Filtro!$A$5:$K$272,3,FALSE),0) -> 228 | E88: =IFERROR(VLOOKUP($A88,Filtro!$A$5:$K$272,4,FALSE),0) -> 1,103 | F88: =IFERROR(VLOOKUP($A88,Filtro!$A$5:$K$272,5,FALSE),0) -> 0 | G88: =IFERROR(VLOOKUP($A88,Filtro!$A$5:$K$272,6,FALSE),0) -> 0 | H88: =IFERROR(VLOOKUP($A88,Filtro!$A$5:$K$272,7,FALSE),0) -> 0 | I88: =IFERROR(VLOOKUP($A88,Filtro!$A$5:$K$272,8,FALSE),0) -> 0
B89: SECCIÓN H: OTROS TRASLADOS DE PACIENTES
B90: TIPO DE ACCION | D90: TOTAL | E90: POR COMPRA DE SERVICIO
A91: 18090200 | B91: TRASLADOS NO DE URGENCIA | C91: AMBULANCIA | D91: =IFERROR(VLOOKUP($A91,Filtro!$A$5:$K$272,2,FALSE),0) -> 1,266 | E91: =IFERROR(VLOOKUP($A91,Filtro!$A$5:$K$272,3,FALSE),0) -> 331
A92: 18090300 | C92: MARÍTIMO | D92: =IFERROR(VLOOKUP($A92,Filtro!$A$5:$K$272,2,FALSE),0) -> 0 | E92: =IFERROR(VLOOKUP($A92,Filtro!$A$5:$K$272,3,FALSE),0) -> 0
A93: 18090400 | C93: AÉREO | D93: =IFERROR(VLOOKUP($A93,Filtro!$A$5:$K$272,2,FALSE),0) -> 0 | E93: =IFERROR(VLOOKUP($A93,Filtro!$A$5:$K$272,3,FALSE),0) -> 0
B94: SECCIÓN I: EXAMENES PESQUISA COVID-19
B95: TIPO DE EXÁMEN | C95: TOTAL | D95: Por grupos etarios | G95: POR COMPRA DE SERVICIO
D96: < 15 años | E96: > 15-64 años | F96: 65 y más años
A97: 18700100 | B97: 0306082: Reacción de Polimerasa en Cadena (P.C.R.), virus Influenza, virus Herpes, citomegalovirus, hepatitis C, mycobacteria TBC, SARS CoV -2 c/u (incluye toma muestra hisopado nasofaríngeo). | C97: =SUM(D97:F97) -> 24 | D97: =IFERROR(VLOOKUP($A97,Filtro!$A$5:$K$272,3,FALSE),0) -> 0 | E97: =IFERROR(VLOOKUP($A97,Filtro!$A$5:$K$272,4,FALSE),0) -> 21 | F97: =IFERROR(VLOOKUP($A97,Filtro!$A$5:$K$272,5,FALSE),0) -> 3 | G97: =IFERROR(VLOOKUP($A97,Filtro!$A$5:$K$272,6,FALSE),0) -> 0
A100: CODIGOS ELIMINADOS
A101: 18700110
A102: 18700120
A103: 18700130
A104: 18700140
A105: 18700150
A106: 18700160
A107: 18700170
A108: 18700180
A109: 18700190
A110: 18700210
A111: 18700220
A112: 18700230

Sheet BM18A
B1: SERVICIO DE SALUD
B2: =CONCATENATE("COMUNA: ",NOMBRE!B2," ","( ",NOMBRE!C2,NOMBRE!D2,NOMBRE!E2,NOMBRE!F2,NOMBRE!G2," )") -> COMUNA: ( )
B3: =CONCATENATE("ESTABLECIMIENTO/ESTRATEGIA: ",NOMBRE!B3," ","( ",NOMBRE!C3,NOMBRE!D3,NOMBRE!E3,NOMBRE!F3,NOMBRE!G3,NOMBRE!H3," )") -> ESTABLECIMIENTO/ESTRATEGIA: ( )
B4: =CONCATENATE("MES: ",NOMBRE!B6," ","( ",NOMBRE!C6,NOMBRE!D6," )") -> MES: ( )
B5: =CONCATENATE("AÑO: ",NOMBRE!B7) -> AÑO: 2024
B7: REM-18A - LIBRO DE PRESTACIONES DE APOYO DIAGNOSTICO y TERAPÉUTICO (USO EXCLUSIVO DE ESTABLECIMIENTOS MUNICIPALES)
B9: SECCIÓN A: EXÁMENES DE DIAGNOSTICO
B10: CÓDIGOS | C10: EXÁMENES | D10: TOTAL | E10: SAPU/SAR/SUR | F10: Resto Establecimientos APS | G10: Compra de Servicios
B12: SANGRE HEMATOLOGÍA
A13: 80301001 | B13: 0301001 | C13: Acidificación del suero, test de Ham | D13: =SUM(E13:F13) -> 0 | E13: =IFERROR(VLOOKUP($A13,Filtro!$A$5:$K$272,3,FALSE),0) -> 0 | F13: =IFERROR(VLOOKUP($A13,Filtro!$A$5:$K$272,4,FALSE),0) -> 0 | G13: =IFERROR(VLOOKUP($A13,Filtro!$A$5:$K$272,5,FALSE),0) -> 0
A14: 80301002 | B14: 0301002 | C14: Acido fólico o folatos | D14: =SUM(E14:F14) -> 0 | E14: =IFERROR(VLOOKUP($A14,Filtro!$A$5:$K$272,3,FALSE),0) -> 0 | F14: =IFERROR(VLOOKUP($A14,Filtro!$A$5:$K$272,4,FALSE),0) -> 0 | G14: =IFERROR(VLOOKUP($A14,Filtro!$A$5:$K$272,5,FALSE),0) -> 1
A15: 80301003 | B15: 0301003 | C15: Adenograma, esplenograma, mielograma c/u | D15: =SUM(E15:F15) -> 0 | E15: =IFERROR(VLOOKUP($A15,Filtro!$A$5:$K$272,3,FALSE),0) -> 0 | F15: =IFERROR(VLOOKUP($A15,Filtro!$A$5:$K$272,4,FALSE),0) -> 0 | G15: =IFERROR(VLOOKUP($A15,Filtro!$A$5:$K$272,5,FALSE),0) -> 0
A16: 80301004 | B16: 0301004 | C16: Adhesividad plaquetaria | D16: 0 | E16: =IFERROR(VLOOKUP($A16,Filtro!$A$5:$K$272,3,FALSE),0) -> 0 | F16: =IFERROR(VLOOKUP($A16,Filtro!$A$5:$K$272,4,FALSE),0) -> 0 | G16: =IFERROR(VLOOKUP($A16,Filtro!$A$5:$K$272,5,FALSE),0) -> 0
A17: 80301005 | B17: 0301005 | C17: Aglutininas anti Rho | D17: 0 | E17: =IFERROR(VLOOKUP($A17,Filtro!$A$5:$K$272,3,FALSE),0) -> 0 | F17: =IFERROR(VLOOKUP($A17,Filtro!$A$5:$K$272,4,FALSE),0) -> 0 | G17: =IFERROR(VLOOKUP($A17,Filtro!$A$5:$K$272,5,FALSE),0) -> 0
A18: 80301006 | B18: 0301006 | C18: Agregación plaquetaria | D18: 0 | E18: =IFERROR(VLOOKUP($A18,Filtro!$A$5:$K$272,3,FALSE),0) -> 0 | F18: =IFERROR(VLOOKUP($A18,Filtro!$A$5:$K$272,4,FALSE),0) -> 0 | G18: =IFERROR(VLOOKUP($A18,Filtro!$A$5:$K$272,5,FALSE),0) -> 0
A19: 80301007 | B19: 0301007 | C19: Anticoagulantes circulantes o anticoagulante lúpico | D19: 0 | E19: =IFERROR(VLOOKUP($A19,Filtro!$A$5:$K$272,3,FALSE),0) -> 0 | F19: =IFERROR(VLOOKUP($A19,Filtro!$A$5:$K$272,4,FALSE),0) -> 0 | G19: =IFERROR(VLOOKUP($A19,Filtro!$A$5:$K$272,5,FALSE),0) -> 0
A20: 80301008 | B20: 0301008 | C20: Antitrombina III | D20: 0 | E20: =IFERROR(VLOOKUP($A20,Filtro!$A$5:$K$272,3,FALSE),0) -> 0 | F20: =IFERROR(VLOOKUP($A20,Filtro!$A$5:$K$272,4,FALSE),0) -> 0 | G20: =IFERROR(VLOOKUP($A20,Filtro!$A$5:$K$272,5,FALSE),0) -> 0
A21: 80301009 | B21: 0301009 | C21: Auto-hemólisis test, con y sin glucosa | D21: 0 | E21: =IFERROR(VLOOKUP($A21,Filtro!$A$5:$K$272,3,FALSE),0) -> 0 | F21: =IFERROR(VLOOKUP($A21,Filtro!$A$5:$K$272,4,FALSE),0) -> 0 | G21: =IFERROR(VLOOKUP($A21,Filtro!$A$5:$K$272,5,FALSE),0) -> 0
A22: 80301010 | B22: 0301010 | C22: Células del lupus, cada muestra | D22: 0 | E22: =IFERROR(VLOOKUP($A22,Filtro!$A$5:$K$272,3,FALSE),0) -> 0 | F22: =IFERROR(VLOOKUP($A22,Filtro!$A$5:$K$272,4,FALSE),0) -> 0 | G22: =IFERROR(VLOOKUP($A22,Filtro!$A$5:$K$272,5,FALSE),0) -> 0
A23: 80301011 | B23: 0301011 | C23: Coagulación, tiempo de | D23: 1 | E23: =IFERROR(VLOOKUP($A23,Filtro!$A$5:$K$272,3,FALSE),0) -> 0 | F23: =IFERROR(VLOOKUP($A23,Filtro!$A$5:$K$272,4,FALSE),0) -> 1 | G23: =IFERROR(VLOOKUP($A23,Filtro!$A$5:$K$272,5,FALSE),0) -> 56
A24: 80301012 | B24: 0301012 | C24: Coágulo, tiempo de retracción del | D24: 0 | E24: =IFERROR(VLOOKUP($A24,Filtro!$A$5:$K$272,3,FALSE),0) -> 0 | F24: =IFERROR(VLOOKUP($A24,Filtro!$A$5:$K$272,4,FALSE),0) -> 0 | G24: =IFERROR(VLOOKUP($A24,Filtro!$A$5:$K$272,5,FALSE),0) -> 0
A25: 80301013 | B25: 0301013 | C25: Coágulo, tiempo de lisis del | D25: 0 | E25: =IFERROR(VLOOKUP($A25,Filtro!$A$5:$K$272,3,FALSE),0) -> 0 | F25: =IFERROR(VLOOKUP($A25,Filtro!$A$5:$K$272,4,FALSE),0) -> 0 | G25: =IFERROR(VLOOKUP($A25,Filtro!$A$5:$K$272,5,FALSE),0) -> 0
A26: 80301014 | B26: 0301014 | C26: Coombs directo, test de | D26: 0 | E26: =IFERROR(VLOOKUP($A26,Filtro!$A$5:$K$272,3,FALSE),0) -> 0 | F26: =IFERROR(VLOOKUP($A26,Filtro!$A$5:$K$272,4,FALSE),0) -> 0 | G26: =IFERROR(VLOOKUP($A26,Filtro!$A$5:$K$272,5,FALSE),0) -> 12
A27: 80301015 | B27: 0301015 | C27: Coombs indirecto, prueba de | D27: 0 | E27: =IFERROR(VLOOKUP($A27,Filtro!$A$5:$K$272,3,FALSE),0) -> 0 | F27: =IFERROR(VLOOKUP($A27,Filtro!$A$5:$K$272,4,FALSE),0) -> 0 | G27: =IFERROR(VLOOKUP($A27,Filtro!$A$5:$K$272,5,FALSE),0) -> 297
A28: 80301016 | B28: 0301016 | C28: Cuerpos de Heinz | D28: 0 | E28: =IFERROR(VLOOKUP($A28,Filtro!$A$5:$K$272,3,FALSE),0) -> 0 | F28: =IFERROR(VLOOKUP($A28,Filtro!$A$5:$K$272,4,FALSE),0) -> 0 | G28: =IFERROR(VLOOKUP($A28,Filtro!$A$5:$K$272,5,FALSE),0) -> 0
A29: 80301017 | B29: 0301017 | C29: Deshidrogenasa glucosa-6-fosfato en eritrocitos | D29: 0 | E29: =IFERROR(VLOOKUP($A29,Filtro!$A$5:$K$272,3,FALSE),0) -> 0 | F29: =IFERROR(VLOOKUP($A29,Filtro!$A$5:$K$272,4,FALSE),0) -> 0 | G29: =IFERROR(VLOOKUP($A29,Filtro!$A$5:$K$272,5,FALSE),0) -> 0
A30: 80301020 | B30: 0301020 | C30: Euglobulinas, tiempo de lisis de | D30: 0 | E30: =IFERROR(VLOOKUP($A30,Filtro!$A$5:$K$272,3,FALSE),0) -> 0 | F30: =IFERROR(VLOOKUP($A30,Filtro!$A$5:$K$272,4,FALSE),0) -> 0 | G30: =IFERROR(VLOOKUP($A30,Filtro!$A$5:$K$272,5,FALSE),0) -> 0
A31: 80301021 | B31: 0301021 | C31: Fibrinógeno | D31: 0 | E31: =IFERROR(VLOOKUP($A31,Filtro!$A$5:$K$272,3,FALSE),0) -> 0 | F31: =IFERROR(VLOOKUP($A31,Filtro!$A$5:$K$272,4,FALSE),0) -> 0 | G31: =IFERROR(VLOOKUP($A31,Filtro!$A$5:$K$272,5,FALSE),0) -> 0
A32: 80301022 | B32: 0301022 | C32: Test de neutralización plaquetaria | D32: 0 | E32: =IFERROR(VLOOKUP($A32,Filtro!$A$5:$K$272,3,FALSE),0) -> 0 | F32: =IFERROR(VLOOKUP($A32,Filtro!$A$5:$K$272,4,FALSE),0) -> 0 | G32: =IFERROR(VLOOKUP($A32,Filtro!$A$5:$K$272,5,FALSE),0) -> 0
A33: 80301023 | B33: 0301023 | C33: Factor III plaquetario | D33: 0 | E33: =IFERROR(VLOOKUP($A33,Filtro!$A$5:$K$272,3,FALSE),0) -> 0 | F33: =IFERROR(VLOOKUP($A33,Filtro!$A$5:$K$272,4,FALSE),0) -> 0 | G33: =IFERROR(VLOOKUP($A33,Filtro!$A$5:$K$272,5,FALSE),0) -> 0
A34: 80301024 | B34: 0301024 | C34: Factor V | D34: 0 | E34: =IFERROR(VLOOKUP($A34,Filtro!$A$5:$K$272,3,FALSE),0) -> 0 | F34: =IFERROR(VLOOKUP($A34,Filtro!$A$5:$K$272,4,FALSE),0) -> 0 | G34: =IFERROR(VLOOKUP($A34,Filtro!$A$5:$K$272,5,FALSE),0) -> 0
A35: 80301025 | B35: 0301025 | C35: Factores VII, VIII, IX, X, XI, XII, XIII, c/u | D35: 0 | E35: =IFERROR(VLOOKUP($A35,Filtro!$A$5:$K$272,3,FALSE),0) -> 0 | F35: =IFERROR(VLOOKUP($A35,Filtro!$A$5:$K$272,4,FALSE),0) -> 0 | G35: =IFERROR(VLOOKUP($A35,Filtro!$A$5:$K$272,5,FALSE),0) -> 0
A36: 80301026 | B36: 0301026 | C36: Ferritina | D36: 0 | E36: =IFERROR(VLOOKUP($A36,Filtro!$A$5:$K$272,3,FALSE),0) -> 0 | F36: =IFERROR(VLOOKUP($A36,Filtro!$A$5:$K$272,4,FALSE),0) -> 0 | G36: =IFERROR(VLOOKUP($A36,Filtro!$A$5:$K$272,5,FALSE),0) -> 0
A37: 80301027 | B37: 0301027 | C37: Fibrinógeno, productos de degradación del | D37: 0 | E37: =IFERROR(VLOOKUP($A37,Filtro!$A$5:$K$272,3,FALSE),0) -> 0 | F37: =IFERROR(VLOOKUP($A37,Filtro!$A$5:$K$272,4,FALSE),0) -> 0 | G37: =IFERROR(VLOOKUP($A37,Filtro!$A$5:$K$272,5,FALSE),0) -> 0
A38: 80301028 | B38: 0301028 | C38: Fierro sérico | D38: 0 | E38: =IFERROR(VLOOKUP($A38,Filtro!$A$5:$K$272,3,FALSE),0) -> 0 | F38: =IFERROR(VLOOKUP($A38,Filtro!$A$5:$K$272,4,FALSE),0) -> 0 | G38: =IFERROR(VLOOKUP($A38,Filtro!$A$5:$K$272,5,FALSE),0) -> 0
A39: 80301029 | B39: 0301029 | C39: Fierro, capacidad de fijación del (incluye fierro sérico) | D39: 0 | E39: =IFERROR(VLOOKUP($A39,Filtro!$A$5:$K$272,3,FALSE),0) -> 0 | F39: =IFERROR(VLOOKUP($A39,Filtro!$A$5:$K$272,4,FALSE),0) -> 0 | G39: =IFERROR(VLOOKUP($A39,Filtro!$A$5:$K$272,5,FALSE),0) -> 0
A40: 80301030 | B40: 0301030 | C40: Fierro, cinética del (cada determinación) | D40: 0 | E40: =IFERROR(VLOOKUP($A40,Filtro!$A$5:$K$272,3,FALSE),0) -> 0 | F40: =IFERROR(VLOOKUP($A40,Filtro!$A$5:$K$272,4,FALSE),0) -> 0 | G40: =IFERROR(VLOOKUP($A40,Filtro!$A$5:$K$272,5,FALSE),0) -> 0
A41: 80301032 | B41: 0301032 | C41: Gelación por etanol | D41: 0 | E41: =IFERROR(VLOOKUP($A41,Filtro!$A$5:$K$272,3,FALSE),0) -> 0 | F41: =IFERROR(VLOOKUP($A41,Filtro!$A$5:$K$272,4,FALSE),0) -> 0 | G41: =IFERROR(VLOOKUP($A41,Filtro!$A$5:$K$272,5,FALSE),0) -> 0
A42: 80301033 | B42: 0301033 | C42: Grupos menores. Tipificación o determinación de otros sistemas sanguíneos (Kell, Duffy, Kidd y otros) c/u. | D42: 0 | E42: =IFERROR(VLOOKUP($A42,Filtro!$A$5:$K$272,3,FALSE),0) -> 0 | F42: =IFERROR(VLOOKUP($A42,Filtro!$A$5:$K$272,4,FALSE),0) -> 0 | G42: =IFERROR(VLOOKUP($A42,Filtro!$A$5:$K$272,5,FALSE),0) -> 0
A43: 80301034 | B43: 0301034 | C43: Grupos sanguíneos AB0 y Rho (incluye estudio de factor Du en Rh negativos) | D43: 238 | E43: =IFERROR(VLOOKUP($A43,Filtro!$A$5:$K$272,3,FALSE),0) -> 0 | F43: =IFERROR(VLOOKUP($A43,Filtro!$A$5:$K$272,4,FALSE),0) -> 238 | G43: =IFERROR(VLOOKUP($A43,Filtro!$A$5:$K$272,5,FALSE),0) -> 445
A44: 80301035 | B44: 0301035 | C44: Haptoglobina cuantitativa | D44: 0 | E44: =IFERROR(VLOOKUP($A44,Filtro!$A$5:$K$272,3,FALSE),0) -> 0 | F44: =IFERROR(VLOOKUP($A44,Filtro!$A$5:$K$272,4,FALSE),0) -> 0 | G44: =IFERROR(VLOOKUP($A44,Filtro!$A$5:$K$272,5,FALSE),0) -> 478
A45: 80301036 | B45: 0301036 | C45: Hematocrito (proc. aut.) | D45: 649 | E45: =IFERROR(VLOOKUP($A45,Filtro!$A$5:$K$272,3,FALSE),0) -> 0 | F45: =IFERROR(VLOOKUP($A45,Filtro!$A$5:$K$272,4,FALSE),0) -> 649 | G45: =IFERROR(VLOOKUP($A45,Filtro!$A$5:$K$272,5,FALSE),0) -> 7,002
A46: 80301038 | B46: 0301038 | C46: Hemoglobina en sangre total (proc. aut.) | D46: 380 | E46: =IFERROR(VLOOKUP($A46,Filtro!$A$5:$K$272,3,FALSE),0) -> 0 | F46: =IFERROR(VLOOKUP($A46,Filtro!$A$5:$K$272,4,FALSE),0) -> 380 | G46: =IFERROR(VLOOKUP($A46,Filtro!$A$5:$K$272,5,FALSE),0) -> 5,702
A47: 80301039 | B47: 0301039 | C47: Hemoglobina fetal cualitativa | D47: 0 | E47: =IFERROR(VLOOKUP($A47,Filtro!$A$5:$K$272,3,FALSE),0) -> 0 | F47: =IFERROR(VLOOKUP($A47,Filtro!$A$5:$K$272,4,FALSE),0) -> 0 | G47: =IFERROR(VLOOKUP($A47,Filtro!$A$5:$K$272,5,FALSE),0) -> 0
A48: 80301040 | B48: 0301040 | C48: Hemoglobina fetal cuantitativa en eritrocitos | D48: 0 | E48: =IFERROR(VLOOKUP($A48,Filtro!$A$5:$K$272,3,FALSE),0) -> 0 | F48: =IFERROR(VLOOKUP($A48,Filtro!$A$5:$K$272,4,FALSE),0) -> 0 | G48: =IFERROR(VLOOKUP($A48,Filtro!$A$5:$K$272,5,FALSE),0) -> 0
A49: 80301041 | B49: 0301041 | C49: Hemoglobina glicosilada | D49: 5,282 | E49: =IFERROR(VLOOKUP($A49,Filtro!$A$5:$K$272,3,FALSE),0) -> 0 | F49: =IFERROR(VLOOKUP($A49,Filtro!$A$5:$K$272,4,FALSE),0) -> 5,282 | G49: =IFERROR(VLOOKUP($A49,Filtro!$A$5:$K$272,5,FALSE),0) -> 10,137
A50: 80301042 | B50: 0301042 | C50: Hemoglobina plasmática | D50: 0 | E50: =IFERROR(VLOOKUP($A50,Filtro!$A$5:$K$272,3,FALSE),0) -> 0 | F50: =IFERROR(VLOOKUP($A50,Filtro!$A$5:$K$272,4,FALSE),0) -> 0 | G50: =IFERROR(VLOOKUP($A50,Filtro!$A$5:$K$272,5,FALSE),0) -> 0
A51: 80301043 | B51: 0301043 | C51: Hemoglobina termolabil | D51: 0 | E51: =IFERROR(VLOOKUP($A51,Filtro!$A$5:$K$272,3,FALSE),0) -> 0 | F51: =IFERROR(VLOOKUP($A51,Filtro!$A$5:$K$272,4,FALSE),0) -> 0 | G51: =IFERROR(VLOOKUP($A51,Filtro!$A$5:$K$272,5,FALSE),0) -> 0
A52: 80301044 | B52: 0301044 | C52: Hemoglobina, electroforesis de (incluye Hb. total) | D52: 0 | E52: =IFERROR(VLOOKUP($A52,Filtro!$A$5:$K$272,3,FALSE),0) -> 0 | F52: =IFERROR(VLOOKUP($A52,Filtro!$A$5:$K$272,4,FALSE),0) -> 0 | G52: =IFERROR(VLOOKUP($A52,Filtro!$A$5:$K$272,5,FALSE),0) -> 0
A53: 80301045 | B53: 0301045 | C53: Hemograma (incluye recuentos de leucocitos y eritrocitos, hemoglobina, hematocrito, fórmula leucocitaria, características de los elementos figurados y velocidad de eritrosedimentación) | D53: 10,091 | E53: =IFERROR(VLOOKUP($A53,Filtro!$A$5:$K$272,3,FALSE),0) -> 0 | F53: =IFERROR(VLOOKUP($A53,Filtro!$A$5:$K$272,4,FALSE),0) -> 10,091 | G53: =IFERROR(VLOOKUP($A53,Filtro!$A$5:$K$272,5,FALSE),0) -> 12,283
A54: 80301046 | B54: 0301046 | C54: Hemolisinas | D54: 0 | E54: =IFERROR(VLOOKUP($A54,Filtro!$A$5:$K$272,3,FALSE),0) -> 0 | F54: =IFERROR(VLOOKUP($A54,Filtro!$A$5:$K$272,4,FALSE),0) -> 0 | G54: =IFERROR(VLOOKUP($A54,Filtro!$A$5:$K$272,5,FALSE),0) -> 337
A55: 80301047 | B55: 0301047 | C55: Hemólisis con sucrosa, test de | D55: 0 | E55: =IFERROR(VLOOKUP($A55,Filtro!$A$5:$K$272,3,FALSE),0) -> 0 | F55: =IFERROR(VLOOKUP($A55,Filtro!$A$5:$K$272,4,FALSE),0) -> 0 | G55: =IFERROR(VLOOKUP($A55,Filtro!$A$5:$K$272,5,FALSE),0) -> 0
A56: 80301048 | B56: 0301048 | C56: Hemosiderina medular | D56: 0 | E56: =IFERROR(VLOOKUP($A56,Filtro!$A$5:$K$272,3,FALSE),0) -> 0 | F56: =IFERROR(VLOOKUP($A56,Filtro!$A$5:$K$272,4,FALSE),0) -> 0 | G56: =IFERROR(VLOOKUP($A56,Filtro!$A$5:$K$272,5,FALSE),0) -> 0
A57: 80301049 | B57: 0301049 | C57: Heparina, cuantificación de | D57: 0 | E57: =IFERROR(VLOOKUP($A57,Filtro!$A$5:$K$272,3,FALSE),0) -> 0 | F57: =IFERROR(VLOOKUP($A57,Filtro!$A$5:$K$272,4,FALSE),0) -> 0 | G57: =IFERROR(VLOOKUP($A57,Filtro!$A$5:$K$272,5,FALSE),0) -> 0
A58: 80301050 | B58: 0301050 | C58: Isoinmunización, detección de anticuerpos irregulares (proc. aut.). | D58: 0 | E58: =IFERROR(VLOOKUP($A58,Filtro!$A$5:$K$272,3,FALSE),0) -> 0 | F58: =IFERROR(VLOOKUP($A58,Filtro!$A$5:$K$272,4,FALSE),0) -> 0 | G58: =IFERROR(VLOOKUP($A58,Filtro!$A$5:$K$272,5,FALSE),0) -> 0
A59: 80301051 | B59: 0301051 | C59: Isoinmunización, detección e identificación de anticuerpos | D59: 0 | E59: =IFERROR(VLOOKUP($A59,Filtro!$A$5:$K$272,3,FALSE),0) -> 0 | F59: =IFERROR(VLOOKUP($A59,Filtro!$A$5:$K$272,4,FALSE),0) -> 0 | G59: =IFERROR(VLOOKUP($A59,Filtro!$A$5:$K$272,5,FALSE),0) -> 0
A60: 80301052 | B60: 0301052 | C60: Isopropanol, test de | D60: 0 | E60: =IFERROR(VLOOKUP($A60,Filtro!$A$5:$K$272,3,FALSE),0) -> 0 | F60: =IFERROR(VLOOKUP($A60,Filtro!$A$5:$K$272,4,FALSE),0) -> 0 | G60: =IFERROR(VLOOKUP($A60,Filtro!$A$5:$K$272,5,FALSE),0) -> 0
A61: 80301053 | B61: 0301053 | C61: Metahemalbúmina | D61: 0 | E61: =IFERROR(VLOOKUP($A61,Filtro!$A$5:$K$272,3,FALSE),0) -> 0 | F61: =IFERROR(VLOOKUP($A61,Filtro!$A$5:$K$272,4,FALSE),0) -> 0 | G61: =IFERROR(VLOOKUP($A61,Filtro!$A$5:$K$272,5,FALSE),0) -> 0
A62: 80301054 | B62: 0301054 | C62: Metahemoglobina | D62: 0 | E62: =IFERROR(VLOOKUP($A62,Filtro!$A$5:$K$272,3,FALSE),0) -> 0 | F62: =IFERROR(VLOOKUP($A62,Filtro!$A$5:$K$272,4,FALSE),0) -> 0 | G62: =IFERROR(VLOOKUP($A62,Filtro!$A$5:$K$272,5,FALSE),0) -> 0
A63: 80301055 | B63: 0301055 | C63: Muraminidasa en eritrocitos | D63: 0 | E63: =IFERROR(VLOOKUP($A63,Filtro!$A$5:$K$272,3,FALSE),0) -> 0 | F63: =IFERROR(VLOOKUP($A63,Filtro!$A$5:$K$272,4,FALSE),0) -> 0 | G63: =IFERROR(VLOOKUP($A63,Filtro!$A$5:$K$272,5,FALSE),0) -> 0
A64: 80301056 | B64: 0301056 | C64: Piruvatoquinasa en eritrocitos | D64: 0 | E64: =IFERROR(VLOOKUP($A64,Filtro!$A$5:$K$272,3,FALSE),0) -> 0 | F64: =IFERROR(VLOOKUP($A64,Filtro!$A$5:$K$272,4,FALSE),0) -> 0 | G64: =IFERROR(VLOOKUP($A64,Filtro!$A$5:$K$272,5,FALSE),0) -> 0
A65: 80301057 | B65: 0301057 | C65: Protamina sulfato, determinación de | D65: 0 | E65: =IFERROR(VLOOKUP($A65,Filtro!$A$5:$K$272,3,FALSE),0) -> 0 | F65: =IFERROR(VLOOKUP($A65,Filtro!$A$5:$K$272,4,FALSE),0) -> 0 | G65: =IFERROR(VLOOKUP($A65,Filtro!$A$5:$K$272,5,FALSE),0) -> 0
A66: 80301058 | B66: 0301058 | C66: Protoporfirinas en eritrocitos | D66: 0 | E66: =IFERROR(VLOOKUP($A66,Filtro!$A$5:$K$272,3,FALSE),0) -> 0 | F66: =IFERROR(VLOOKUP($A66,Filtro!$A$5:$K$272,4,FALSE),0) -> 0 | G66: =IFERROR(VLOOKUP($A66,Filtro!$A$5:$K$272,5,FALSE),0) -> 0
A67: 80301059 | B67: 0301059 | C67: Protrombina, tiempo de o consumo de (incluye INR, Relación Internacional Normalizada) | D67: 587 | E67: =IFERROR(VLOOKUP($A67,Filtro!$A$5:$K$272,3,FALSE),0) -> 0 | F67: =IFERROR(VLOOKUP($A67,Filtro!$A$5:$K$272,4,FALSE),0) -> 587 | G67: =IFERROR(VLOOKUP($A67,Filtro!$A$5:$K$272,5,FALSE),0) -> 555
A68: 80301062 | B68: 0301062 | C68: Recuento de basófilos (absoluto) | D68: 0 | E68: =IFERROR(VLOOKUP($A68,Filtro!$A$5:$K$272,3,FALSE),0) -> 0 | F68: =IFERROR(VLOOKUP($A68,Filtro!$A$5:$K$272,4,FALSE),0) -> 0 | G68: =IFERROR(VLOOKUP($A68,Filtro!$A$5:$K$272,5,FALSE),0) -> 0
A69: 80301063 | B69: 0301063 | C69: Recuento de eosinófilos (absoluto) | D69: 0 | E69: =IFERROR(VLOOKUP($A69,Filtro!$A$5:$K$272,3,FALSE),0) -> 0 | F69: =IFERROR(VLOOKUP($A69,Filtro!$A$5:$K$272,4,FALSE),0) -> 0 | G69: =IFERROR(VLOOKUP($A69,Filtro!$A$5:$K$272,5,FALSE),0) -> 0
A70: 80301064 | B70: 0301064 | C70: Recuento de eritrocitos, absoluto (proc. aut.) | D70: 0 | E70: =IFERROR(VLOOKUP($A70,Filtro!$A$5:$K$272,3,FALSE),0) -> 0 | F70: =IFERROR(VLOOKUP($A70,Filtro!$A$5:$K$272,4,FALSE),0) -> 0 | G70: =IFERROR(VLOOKUP($A70,Filtro!$A$5:$K$272,5,FALSE),0) -> 0
A71: 80301065 | B71: 0301065 | C71: Recuento de leucocitos, absoluto (proc. aut.) | D71: 7 | E71: =IFERROR(VLOOKUP($A71,Filtro!$A$5:$K$272,3,FALSE),0) -> 0 | F71: =IFERROR(VLOOKUP($A71,Filtro!$A$5:$K$272,4,FALSE),0) -> 7 | G71: =IFERROR(VLOOKUP($A71,Filtro!$A$5:$K$272,5,FALSE),0) -> 1
A72: 80301066 | B72: 0301066 | C72: Recuento de linfocitos (absoluto) | D72: 0 | E72: =IFERROR(VLOOKUP($A72,Filtro!$A$5:$K$272,3,FALSE),0) -> 0 | F72: =IFERROR(VLOOKUP($A72,Filtro!$A$5:$K$272,4,FALSE),0) -> 0 | G72: =IFERROR(VLOOKUP($A72,Filtro!$A$5:$K$272,5,FALSE),0) -> 0
A73: 80301067 | B73: 0301067 | C73: Recuento de plaquetas (absoluto) | D73: 34 | E73: =IFERROR(VLOOKUP($A73,Filtro!$A$5:$K$272,3,FALSE),0) -> 0 | F73: =IFERROR(VLOOKUP($A73,Filtro!$A$5:$K$272,4,FALSE),0) -> 34 | G73: =IFERROR(VLOOKUP($A73,Filtro!$A$5:$K$272,5,FALSE),0) -> 5
A74: 80301068 | B74: 0301068 | C74: Recuento de reticulocitos (absoluto o porcentual) | D74: 0 | E74: =IFERROR(VLOOKUP($A74,Filtro!$A$5:$K$272,3,FALSE),0) -> 0 | F74: =IFERROR(VLOOKUP($A74,Filtro!$A$5:$K$272,4,FALSE),0) -> 0 | G74: =IFERROR(VLOOKUP($A74,Filtro!$A$5:$K$272,5,FALSE),0) -> 0
A75: 80301069 | B75: 0301069 | C75: Recuento diferencial o fórmula leucocitaria (proc. aut.) | D75: 0 | E75: =IFERROR(VLOOKUP($A75,Filtro!$A$5:$K$272,3,FALSE),0) -> 0 | F75: =IFERROR(VLOOKUP($A75,Filtro!$A$5:$K$272,4,FALSE),0) -> 0 | G75: =IFERROR(VLOOKUP($A75,Filtro!$A$5:$K$272,5,FALSE),0) -> 0
A76: 80301070 | B76: 0301070 | C76: Resistencia globular osmótica | D76: 0 | E76: =IFERROR(VLOOKUP($A76,Filtro!$A$5:$K$272,3,FALSE),0) -> 0 | F76: =IFERROR(VLOOKUP($A76,Filtro!$A$5:$K$272,4,FALSE),0) -> 0 | G76: =IFERROR(VLOOKUP($A76,Filtro!$A$5:$K$272,5,FALSE),0) -> 0
A77: 80301071 | B77: 0301071 | C77: Sacarosa, prueba de la | D77: 0 | E77: =IFERROR(VLOOKUP($A77,Filtro!$A$5:$K$272,3,FALSE),0) -> 0 | F77: =IFERROR(VLOOKUP($A77,Filtro!$A$5:$K$272,4,FALSE),0) -> 0 | G77: =IFERROR(VLOOKUP($A77,Filtro!$A$5:$K$272,5,FALSE),0) -> 0
A78: 80301072 | B78: 0301072 | C78: Sangría, tiempo de (Ivy) (no incluye dispositivo asociado ) | D78: 0 | E78: =IFERROR(VLOOKUP($A78,Filtro!$A$5:$K$272,3,FALSE),0) -> 0 | F78: =IFERROR(VLOOKUP($A78,Filtro!$A$5:$K$272,4,FALSE),0) -> 0 | G78: =IFERROR(VLOOKUP($A78,Filtro!$A$5:$K$272,5,FALSE),0) -> 0
A79: 80301074 | B79: 0301074 | C79: Sobrevida del eritrocito (Cr 51 o similar) | D79: =SUM(E79:F79) -> 0 | E79: =IFERROR(VLOOKUP($A79,Filtro!$A$5:$K$272,3,FALSE),0) -> 0 | F79: =IFERROR(VLOOKUP($A79,Filtro!$A$5:$K$272,4,FALSE),0) -> 0 | G79: =IFERROR(VLOOKUP($A79,Filtro!$A$5:$K$272,5,FALSE),0) -> 0
A80: 80301075 | B80: 0301075 | C80: Subgrupo ABO y Rh fenotipo - genotipo Rh, c/u | D80: 0 | E80: =IFERROR(VLOOKUP($A80,Filtro!$A$5:$K$272,3,FALSE),0) -> 0 | F80: =IFERROR(VLOOKUP($A80,Filtro!$A$5:$K$272,4,FALSE),0) -> 0 | G80: =IFERROR(VLOOKUP($A80,Filtro!$A$5:$K$272,5,FALSE),0) -> 106
A81: 80301076 | B81: 0301076 | C81: Thorn, prueba de (no incluye ACTH) | D81: 0 | E81: =IFERROR(VLOOKUP($A81,Filtro!$A$5:$K$272,3,FALSE),0) -> 0 | F81: =IFERROR(VLOOKUP($A81,Filtro!$A$5:$K$272,4,FALSE),0) -> 0 | G81: =IFERROR(VLOOKUP($A81,Filtro!$A$5:$K$272,5,FALSE),0) -> 0
A82: 80301077 | B82: 0301077 | C82: Tinción de estearasa | D82: 0 | E82: =IFERROR(VLOOKUP($A82,Filtro!$A$5:$K$272,3,FALSE),0) -> 0 | F82: =IFERROR(VLOOKUP($A82,Filtro!$A$5:$K$272,4,FALSE),0) -> 0 | G82: =IFERROR(VLOOKUP($A82,Filtro!$A$5:$K$272,5,FALSE),0) -> 0
A83: 80301078 | B83: 0301078 | C83: Tinción de fosfatasas alcalinas o ácidas | D83: 0 | E83: =IFERROR(VLOOKUP($A83,Filtro!$A$5:$K$272,3,FALSE),0) -> 0 | F83: =IFERROR(VLOOKUP($A83,Filtro!$A$5:$K$272,4,FALSE),0) -> 0 | G83: =IFERROR(VLOOKUP($A83,Filtro!$A$5:$K$272,5,FALSE),0) -> 0
A84: 80301079 | B84: 0301079 | C84: Tinción de glicógeno o PAS | D84: 0 | E84: =IFERROR(VLOOKUP($A84,Filtro!$A$5:$K$272,3,FALSE),0) -> 0 | F84: =IFERROR(VLOOKUP($A84,Filtro!$A$5:$K$272,4,FALSE),0) -> 0 | G84: =IFERROR(VLOOKUP($A84,Filtro!$A$5:$K$272,5,FALSE),0) -> 0
A85: 80301080 | B85: 0301080 | C85: Tinción de lípidos | D85: 0 | E85: =IFERROR(VLOOKUP($A85,Filtro!$A$5:$K$272,3,FALSE),0) -> 0 | F85: =IFERROR(VLOOKUP($A85,Filtro!$A$5:$K$272,4,FALSE),0) -> 0 | G85: =IFERROR(VLOOKUP($A85,Filtro!$A$5:$K$272,5,FALSE),0) -> 0
A86: 80301081 | B86: 0301081 | C86: Tinción de peroxidasas | D86: 0 | E86: =IFERROR(VLOOKUP($A86,Filtro!$A$5:$K$272,3,FALSE),0) -> 0 | F86: =IFERROR(VLOOKUP($A86,Filtro!$A$5:$K$272,4,FALSE),0) -> 0 | G86: =IFERROR(VLOOKUP($A86,Filtro!$A$5:$K$272,5,FALSE),0) -> 0
A87: 80301082 | B87: 0301082 | C87: Transferrina | D87: 0 | E87: =IFERROR(VLOOKUP($A87,Filtro!$A$5:$K$272,3,FALSE),0) -> 0 | F87: =IFERROR(VLOOKUP($A87,Filtro!$A$5:$K$272,4,FALSE),0) -> 0 | G87: =IFERROR(VLOOKUP($A87,Filtro!$A$5:$K$272,5,FALSE),0) -> 0
A88: 80301083 | B88: 0301083 | C88: Trombina, tiempo de | D88: 0 | E88: =IFERROR(VLOOKUP($A88,Filtro!$A$5:$K$272,3,FALSE),0) -> 0 | F88: =IFERROR(VLOOKUP($A88,Filtro!$A$5:$K$272,4,FALSE),0) -> 0 | G88: =IFERROR(VLOOKUP($A88,Filtro!$A$5:$K$272,5,FALSE),0) -> 26
A89: 80301085 | B89: 0301085 | C89: Tromboplastina, tiempo parcial de (TTPA, TTPK o similares) | D89: 183 | E89: =IFERROR(VLOOKUP($A89,Filtro!$A$5:$K$272,3,FALSE),0) -> 0 | F89: =IFERROR(VLOOKUP($A89,Filtro!$A$5:$K$272,4,FALSE),0) -> 183 | G89: =IFERROR(VLOOKUP($A89,Filtro!$A$5:$K$272,5,FALSE),0) -> 297
A90: 80301086 | B90: 0301086 | C90: Velocidad de eritrosedimentación (proc. aut.) | D90: 15 | E90: =IFERROR(VLOOKUP($A90,Filtro!$A$5:$K$272,3,FALSE),0) -> 0 | F90: =IFERROR(VLOOKUP($A90,Filtro!$A$5:$K$272,4,FALSE),0) -> 15 | G90: =IFERROR(VLOOKUP($A90,Filtro!$A$5:$K$272,5,FALSE),0) -> 364
A91: 80301087 | B91: 0301087 | C91: Vitamina B12, absorción de (Co 57 o similar) | D91: 5 | E91: =IFERROR(VLOOKUP($A91,Filtro!$A$5:$K$272,3,FALSE),0) -> 0 | F91: =IFERROR(VLOOKUP($A91,Filtro!$A$5:$K$272,4,FALSE),0) -> 5 | G91: =IFERROR(VLOOKUP($A91,Filtro!$A$5:$K$272,5,FALSE),0) -> 610
A92: 80301088 | B92: 0301088 | C92: Volemia (incluye volumen globular total, volumen plasmático total y volumen sanguíneo total) | D92: 0 | E92: =IFERROR(VLOOKUP($A92,Filtro!$A$5:$K$272,3,FALSE),0) -> 0 | F92: =IFERROR(VLOOKUP($A92,Filtro!$A$5:$K$272,4,FALSE),0) -> 0 | G92: =IFERROR(VLOOKUP($A92,Filtro!$A$5:$K$272,5,FALSE),0) -> 2
A93: 80301089 | B93: 0301089 | C93: Von Willebrand, Ag de (factor VIII Ag.) | D93: 0 | E93: =IFERROR(VLOOKUP($A93,Filtro!$A$5:$K$272,3,FALSE),0) -> 0 | F93: =IFERROR(VLOOKUP($A93,Filtro!$A$5:$K$272,4,FALSE),0) -> 0 | G93: =IFERROR(VLOOKUP($A93,Filtro!$A$5:$K$272,5,FALSE),0) -> 0
A94: 80301090 | B94: 0301090 | C94: Cofactor de Ristocetina | D94: 0 | E94: =IFERROR(VLOOKUP($A94,Filtro!$A$5:$K$272,3,FALSE),0) -> 0 | F94: =IFERROR(VLOOKUP($A94,Filtro!$A$5:$K$272,4,FALSE),0) -> 0 | G94: =IFERROR(VLOOKUP($A94,Filtro!$A$5:$K$272,5,FALSE),0) -> 0
A95: 80301091 | B95: 0301091 | C95: Proteína C | D95: 0 | E95: =IFERROR(VLOOKUP($A95,Filtro!$A$5:$K$272,3,FALSE),0) -> 0 | F95: =IFERROR(VLOOKUP($A95,Filtro!$A$5:$K$272,4,FALSE),0) -> 0 | G95: =IFERROR(VLOOKUP($A95,Filtro!$A$5:$K$272,5,FALSE),0) -> 0
A96: 80301092 | B96: 0301092 | C96: Proteína S | D96: 0 | E96: =IFERROR(VLOOKUP($A96,Filtro!$A$5:$K$272,3,FALSE),0) -> 0 | F96: =IFERROR(VLOOKUP($A96,Filtro!$A$5:$K$272,4,FALSE),0) -> 0 | G96: =IFERROR(VLOOKUP($A96,Filtro!$A$5:$K$272,5,FALSE),0) -> 0
A97: 80301093 | B97: 0301093 | C97: Resistencia Proteína C | D97: 0 | E97: =IFERROR(VLOOKUP($A97,Filtro!$A$5:$K$272,3,FALSE),0) -> 0 | F97: =IFERROR(VLOOKUP($A97,Filtro!$A$5:$K$272,4,FALSE),0) -> 0 | G97: =IFERROR(VLOOKUP($A97,Filtro!$A$5:$K$272,5,FALSE),0) -> 0
B98: TOTAL | D98: =SUM(D13:D97) -> 17,472 | E98: =SUM(E13:E97) -> 0 | F98: =SUM(F13:F97) -> 17,472 | G98: =SUM(G13:G97) -> 38,716
B100: SANGRE BIOQUÍMICO
A101: 80302001 | B101: 0302001 | C101: Acetona cualitativa | D101: =SUM(E101:F101) -> 0 | E101: =IFERROR(VLOOKUP($A101,Filtro!$A$5:$K$272,3,FALSE),0) -> 0 | F101: =IFERROR(VLOOKUP($A101,Filtro!$A$5:$K$272,4,FALSE),0) -> 0 | G101: =IFERROR(VLOOKUP($A101,Filtro!$A$5:$K$272,5,FALSE),0) -> 0
A102: 80302002 | B102: 0302002 | C102: Acido cítrico | D102: =SUM(E102:F102) -> 0 | E102: =IFERROR(VLOOKUP($A102,Filtro!$A$5:$K$272,3,FALSE),0) -> 0 | F102: =IFERROR(VLOOKUP($A102,Filtro!$A$5:$K$272,4,FALSE),0) -> 0 | G102: =IFERROR(VLOOKUP($A102,Filtro!$A$5:$K$272,5,FALSE),0) -> 0
A103: 80302004 | B103: 0302004 | C103: Acido láctico | D103: 0 | E103: =IFERROR(VLOOKUP($A103,Filtro!$A$5:$K$272,3,FALSE),0) -> 0 | F103: =IFERROR(VLOOKUP($A103,Filtro!$A$5:$K$272,4,FALSE),0) -> 0 | G103: =IFERROR(VLOOKUP($A103,Filtro!$A$5:$K$272,5,FALSE),0) -> 0
A104: 80302005 | B104: 0302005 | C104: Acido úrico, en sangre | D104: 5,273 | E104: =IFERROR(VLOOKUP($A104,Filtro!$A$5:$K$272,3,FALSE),0) -> 0 | F104: =IFERROR(VLOOKUP($A104,Filtro!$A$5:$K$272,4,FALSE),0) -> 5,273 | G104: =IFERROR(VLOOKUP($A104,Filtro!$A$5:$K$272,5,FALSE),0) -> 6,932
A105: 80302006 | B105: 0302006 | C105: Alcohol etílico | D105: 0 | E105: =IFERROR(VLOOKUP($A105,Filtro!$A$5:$K$272,3,FALSE),0) -> 0 | F105: =IFERROR(VLOOKUP($A105,Filtro!$A$5:$K$272,4,FALSE),0) -> 0 | G105: =IFERROR(VLOOKUP($A105,Filtro!$A$5:$K$272,5,FALSE),0) -> 0
A106: 80302007 | B106: 0302007 | C106: Aldolasa | D106: 0 | E106: =IFERROR(VLOOKUP($A106,Filtro!$A$5:$K$272,3,FALSE),0) -> 0 | F106: =IFERROR(VLOOKUP($A106,Filtro!$A$5:$K$272,4,FALSE),0) -> 0 | G106: =IFERROR(VLOOKUP($A106,Filtro!$A$5:$K$272,5,FALSE),0) -> 0
A107: 80302008 | B107: 0302008 | C107: Amilasa, en sangre | D107: 0 | E107: =IFERROR(VLOOKUP($A107,Filtro!$A$5:$K$272,3,FALSE),0) -> 0 | F107: =IFERROR(VLOOKUP($A107,Filtro!$A$5:$K$272,4,FALSE),0) -> 0 | G107: =IFERROR(VLOOKUP($A107,Filtro!$A$5:$K$272,5,FALSE),0) -> 3
A108: 80302009 | B108: 0302009 | C108: Aminoácidos, cualitativo en sangre | D108: 0 | E108: =IFERROR(VLOOKUP($A108,Filtro!$A$5:$K$272,3,FALSE),0) -> 0 | F108: =IFERROR(VLOOKUP($A108,Filtro!$A$5:$K$272,4,FALSE),0) -> 0 | G108: =IFERROR(VLOOKUP($A108,Filtro!$A$5:$K$272,5,FALSE),0) -> 0
A109: 80302010 | B109: 0302010 | C109: Amonio | D109: 0 | E109: =IFERROR(VLOOKUP($A109,Filtro!$A$5:$K$272,3,FALSE),0) -> 0 | F109: =IFERROR(VLOOKUP($A109,Filtro!$A$5:$K$272,4,FALSE),0) -> 0 | G109: =IFERROR(VLOOKUP($A109,Filtro!$A$5:$K$272,5,FALSE),0) -> 0
A110: 80302070 | B110: 0302070 | C110: Apolipoproteínas (A1, B u otras) | D110: =SUM(E110:F110) -> 0 | E110: =IFERROR(VLOOKUP($A110,Filtro!$A$5:$K$272,3,FALSE),0) -> 0 | F110: =IFERROR(VLOOKUP($A110,Filtro!$A$5:$K$272,4,FALSE),0) -> 0 | G110: =IFERROR(VLOOKUP($A110,Filtro!$A$5:$K$272,5,FALSE),0) -> 0
A111: 80302011 | B111: 0302011 | C111: Bicarbonato (proc. aut.) | D111: 0 | E111: =IFERROR(VLOOKUP($A111,Filtro!$A$5:$K$272,3,FALSE),0) -> 0 | F111: =IFERROR(VLOOKUP($A111,Filtro!$A$5:$K$272,4,FALSE),0) -> 0 | G111: =IFERROR(VLOOKUP($A111,Filtro!$A$5:$K$272,5,FALSE),0) -> 0
A112: 80302012 | B112: 0302012 | C112: Bilirrubina total (proc. aut.) | D112: =SUM(E112:F112) -> 24 | E112: =IFERROR(VLOOKUP($A112,Filtro!$A$5:$K$272,3,FALSE),0) -> 0 | F112: =IFERROR(VLOOKUP($A112,Filtro!$A$5:$K$272,4,FALSE),0) -> 24 | G112: =IFERROR(VLOOKUP($A112,Filtro!$A$5:$K$272,5,FALSE),0) -> 146
A113: 80302013 | B113: 0302013 | C113: Bilirrubina total y conjugada | D113: 131 | E113: =IFERROR(VLOOKUP($A113,Filtro!$A$5:$K$272,3,FALSE),0) -> 0 | F113: =IFERROR(VLOOKUP($A113,Filtro!$A$5:$K$272,4,FALSE),0) -> 131 | G113: =IFERROR(VLOOKUP($A113,Filtro!$A$5:$K$272,5,FALSE),0) -> 1,383
A114: 80302014 | B114: 0302014 | C114: Bromosulftaleína, prueba de (incluye medicamento y tomas de muestra) | D114: 0 | E114: =IFERROR(VLOOKUP($A114,Filtro!$A$5:$K$272,3,FALSE),0) -> 0 | F114: =IFERROR(VLOOKUP($A114,Filtro!$A$5:$K$272,4,FALSE),0) -> 0 | G114: =IFERROR(VLOOKUP($A114,Filtro!$A$5:$K$272,5,FALSE),0) -> 0
A115: 80302015 | B115: 0302015 | C115: Calcio en sangre | D115: 36 | E115: =IFERROR(VLOOKUP($A115,Filtro!$A$5:$K$272,3,FALSE),0) -> 0 | F115: =IFERROR(VLOOKUP($A115,Filtro!$A$5:$K$272,4,FALSE),0) -> 36 | G115: =IFERROR(VLOOKUP($A115,Filtro!$A$5:$K$272,5,FALSE),0) -> 300
A116: 80302016 | B116: 0302016 | C116: Calcio iónico, incluye proteínas totales | D116: 0 | E116: =IFERROR(VLOOKUP($A116,Filtro!$A$5:$K$272,3,FALSE),0) -> 0 | F116: =IFERROR(VLOOKUP($A116,Filtro!$A$5:$K$272,4,FALSE),0) -> 0 | G116: =IFERROR(VLOOKUP($A116,Filtro!$A$5:$K$272,5,FALSE),0) -> 0
A117: 80302017 | B117: 0302017 | C117: Caroteno | D117: 0 | E117: =IFERROR(VLOOKUP($A117,Filtro!$A$5:$K$272,3,FALSE),0) -> 0 | F117: =IFERROR(VLOOKUP($A117,Filtro!$A$5:$K$272,4,FALSE),0) -> 0 | G117: =IFERROR(VLOOKUP($A117,Filtro!$A$5:$K$272,5,FALSE),0) -> 0
A118: 80302018 | B118: 0302018 | C118: Caroteno, prueba de sobrecarga de (incluye tomas de muestra) | D118: 0 | E118: =IFERROR(VLOOKUP($A118,Filtro!$A$5:$K$272,3,FALSE),0) -> 0 | F118: =IFERROR(VLOOKUP($A118,Filtro!$A$5:$K$272,4,FALSE),0) -> 0 | G118: =IFERROR(VLOOKUP($A118,Filtro!$A$5:$K$272,5,FALSE),0) -> 0
A119: 80302019 | B119: 0302019 | C119: Ceruloplasmina | D119: 0 | E119: =IFERROR(VLOOKUP($A119,Filtro!$A$5:$K$272,3,FALSE),0) -> 0 | F119: =IFERROR(VLOOKUP($A119,Filtro!$A$5:$K$272,4,FALSE),0) -> 0 | G119: =IFERROR(VLOOKUP($A119,Filtro!$A$5:$K$272,5,FALSE),0) -> 0
A120: 80302020 | B120: 0302020 | C120: Cobre | D120: 0 | E120: =IFERROR(VLOOKUP($A120,Filtro!$A$5:$K$272,3,FALSE),0) -> 0 | F120: =IFERROR(VLOOKUP($A120,Filtro!$A$5:$K$272,4,FALSE),0) -> 0 | G120: =IFERROR(VLOOKUP($A120,Filtro!$A$5:$K$272,5,FALSE),0) -> 0
A121: 80302067 | B121: 0302067 | C121: Colesterol total (proc. aut.) | D121: 713 | E121: =IFERROR(VLOOKUP($A121,Filtro!$A$5:$K$272,3,FALSE),0) -> 0 | F121: =IFERROR(VLOOKUP($A121,Filtro!$A$5:$K$272,4,FALSE),0) -> 713 | G121: =IFERROR(VLOOKUP($A121,Filtro!$A$5:$K$272,5,FALSE),0) -> 11,663
A122: 80302068 | B122: 0302068 | C122: Colesterol HDL (proc. aut.) | D122: 203 | E122: =IFERROR(VLOOKUP($A122,Filtro!$A$5:$K$272,3,FALSE),0) -> 0 | F122: =IFERROR(VLOOKUP($A122,Filtro!$A$5:$K$272,4,FALSE),0) -> 203 | G122: =IFERROR(VLOOKUP($A122,Filtro!$A$5:$K$272,5,FALSE),0) -> 9,772
A123: 80302021 | B123: 0302021 | C123: Colinesterasa en plasma o sangre total | D123: 0 | E123: =IFERROR(VLOOKUP($A123,Filtro!$A$5:$K$272,3,FALSE),0) -> 0 | F123: =IFERROR(VLOOKUP($A123,Filtro!$A$5:$K$272,4,FALSE),0) -> 0 | G123: =IFERROR(VLOOKUP($A123,Filtro!$A$5:$K$272,5,FALSE),0) -> 0
A124: 80302022 | B124: 0302022 | C124: Creatina | D124: 0 | E124: =IFERROR(VLOOKUP($A124,Filtro!$A$5:$K$272,3,FALSE),0) -> 0 | F124: =IFERROR(VLOOKUP($A124,Filtro!$A$5:$K$272,4,FALSE),0) -> 0 | G124: =IFERROR(VLOOKUP($A124,Filtro!$A$5:$K$272,5,FALSE),0) -> 694
A125: 80302023 | B125: 0302023 | C125: Creatinina en sangre | D125: 7,943 | E125: =IFERROR(VLOOKUP($A125,Filtro!$A$5:$K$272,3,FALSE),0) -> 0 | F125: =IFERROR(VLOOKUP($A125,Filtro!$A$5:$K$272,4,FALSE),0) -> 7,943 | G125: =IFERROR(VLOOKUP($A125,Filtro!$A$5:$K$272,5,FALSE),0) -> 17,178
A126: 80302024 | B126: 0302024 | C126: Creatinina, depuración de (Clearence) (proc. aut.) | D126: 26 | E126: =IFERROR(VLOOKUP($A126,Filtro!$A$5:$K$272,3,FALSE),0) -> 0 | F126: =IFERROR(VLOOKUP($A126,Filtro!$A$5:$K$272,4,FALSE),0) -> 26 | G126: =IFERROR(VLOOKUP($A126,Filtro!$A$5:$K$272,5,FALSE),0) -> 72
A127: 80302025 | B127: 0302025 | C127: Creatinquinasa CK - MB miocárdica | D127: 0 | E127: =IFERROR(VLOOKUP($A127,Filtro!$A$5:$K$272,3,FALSE),0) -> 0 | F127: =IFERROR(VLOOKUP($A127,Filtro!$A$5:$K$272,4,FALSE),0) -> 0 | G127: =IFERROR(VLOOKUP($A127,Filtro!$A$5:$K$272,5,FALSE),0) -> 0
A128: 80302026 | B128: 0302026 | C128: Creatinquinasa CK - total | D128: 0 | E128: =IFERROR(VLOOKUP($A128,Filtro!$A$5:$K$272,3,FALSE),0) -> 0 | F128: =IFERROR(VLOOKUP($A128,Filtro!$A$5:$K$272,4,FALSE),0) -> 0 | G128: =IFERROR(VLOOKUP($A128,Filtro!$A$5:$K$272,5,FALSE),0) -> 41
A129: 80302028 | B129: 0302028 | C129: Depuraciones (Clearance) exógenas de Hipurán, Rojo Congo, manitol e inulina, c/u (no incluye medicamento) | D129: 3 | E129: =IFERROR(VLOOKUP($A129,Filtro!$A$5:$K$272,3,FALSE),0) -> 0 | F129: =IFERROR(VLOOKUP($A129,Filtro!$A$5:$K$272,4,FALSE),0) -> 3 | G129: =IFERROR(VLOOKUP($A129,Filtro!$A$5:$K$272,5,FALSE),0) -> 0
A130: 80302029 | B130: 0302029 | C130: Deshidrogenasa hidroxibutírica (HBDH) | D130: 0 | E130: =IFERROR(VLOOKUP($A130,Filtro!$A$5:$K$272,3,FALSE),0) -> 0 | F130: =IFERROR(VLOOKUP($A130,Filtro!$A$5:$K$272,4,FALSE),0) -> 0 | G130: =IFERROR(VLOOKUP($A130,Filtro!$A$5:$K$272,5,FALSE),0) -> 0
A131: 80302030 | B131: 0302030 | C131: Deshidrogenasa láctica total (LDH) | D131: 50 | E131: =IFERROR(VLOOKUP($A131,Filtro!$A$5:$K$272,3,FALSE),0) -> 0 | F131: =IFERROR(VLOOKUP($A131,Filtro!$A$5:$K$272,4,FALSE),0) -> 50 | G131: =IFERROR(VLOOKUP($A131,Filtro!$A$5:$K$272,5,FALSE),0) -> 369
A132: 80302031 | B132: 0302031 | C132: Deshidrogenasa láctica total (LDH), con separación de isoenzimas | D132: 0 | E132: =IFERROR(VLOOKUP($A132,Filtro!$A$5:$K$272,3,FALSE),0) -> 0 | F132: =IFERROR(VLOOKUP($A132,Filtro!$A$5:$K$272,4,FALSE),0) -> 0 | G132: =IFERROR(VLOOKUP($A132,Filtro!$A$5:$K$272,5,FALSE),0) -> 0
A133: 80302032 | B133: 0302032 | C133: Electrolitos plasmáticos (sodio, potasio, cloro) c/u | D133: 14,930 | E133: =IFERROR(VLOOKUP($A133,Filtro!$A$5:$K$272,3,FALSE),0) -> 0 | F133: =IFERROR(VLOOKUP($A133,Filtro!$A$5:$K$272,4,FALSE),0) -> 14,930 | G133: =IFERROR(VLOOKUP($A133,Filtro!$A$5:$K$272,5,FALSE),0) -> 15,301
A134: 80302033 | B134: 0302033 | C134: Enzima convertidora de angiotensina I | D134: 0 | E134: =IFERROR(VLOOKUP($A134,Filtro!$A$5:$K$272,3,FALSE),0) -> 0 | F134: =IFERROR(VLOOKUP($A134,Filtro!$A$5:$K$272,4,FALSE),0) -> 0 | G134: =IFERROR(VLOOKUP($A134,Filtro!$A$5:$K$272,5,FALSE),0) -> 0
A135: 80302034 | B135: 0302034 | C135: Perfil Lipídico (incluye: colesterol total, HDL, LDL, VLDL y triglicéridos) | D135: 9,036 | E135: =IFERROR(VLOOKUP($A135,Filtro!$A$5:$K$272,3,FALSE),0) -> 0 | F135: =IFERROR(VLOOKUP($A135,Filtro!$A$5:$K$272,4,FALSE),0) -> 9,036 | G135: =IFERROR(VLOOKUP($A135,Filtro!$A$5:$K$272,5,FALSE),0) -> 11,094
A136: 80302035 | B136: 0302035 | C136: Fármacos y/o drogas; niveles plasmáticos de (alcohol, anorexígenos, antiarrítmicos, antibióticos, antidepresivos, antiepilépticos, antihistamínicos, antiinflamatorios y analgésicos, estimulantes respiratorios, tranquilizantes mayores y menores, etc.) c/u | D136: 0 | E136: =IFERROR(VLOOKUP($A136,Filtro!$A$5:$K$272,3,FALSE),0) -> 0 | F136: =IFERROR(VLOOKUP($A136,Filtro!$A$5:$K$272,4,FALSE),0) -> 0 | G136: =IFERROR(VLOOKUP($A136,Filtro!$A$5:$K$272,5,FALSE),0) -> 30
A137: 80302036 | B137: 0302036 | C137: Fenilalanina | D137: 0 | E137: =IFERROR(VLOOKUP($A137,Filtro!$A$5:$K$272,3,FALSE),0) -> 0 | F137: =IFERROR(VLOOKUP($A137,Filtro!$A$5:$K$272,4,FALSE),0) -> 0 | G137: =IFERROR(VLOOKUP($A137,Filtro!$A$5:$K$272,5,FALSE),0) -> 0
A138: 80302037 | B138: 0302037 | C138: Fosfatasas ácidas totales | D138: 0 | E138: =IFERROR(VLOOKUP($A138,Filtro!$A$5:$K$272,3,FALSE),0) -> 0 | F138: =IFERROR(VLOOKUP($A138,Filtro!$A$5:$K$272,4,FALSE),0) -> 0 | G138: =IFERROR(VLOOKUP($A138,Filtro!$A$5:$K$272,5,FALSE),0) -> 0
A139: 80302038 | B139: 0302038 | C139: Fosfatasas ácidas totales y fracción prostática | D139: 0 | E139: =IFERROR(VLOOKUP($A139,Filtro!$A$5:$K$272,3,FALSE),0) -> 0 | F139: =IFERROR(VLOOKUP($A139,Filtro!$A$5:$K$272,4,FALSE),0) -> 0 | G139: =IFERROR(VLOOKUP($A139,Filtro!$A$5:$K$272,5,FALSE),0) -> 0
A140: 80302039 | B140: 0302039 | C140: Fosfatasas alcalinas con separación de isoenzimas hepáticas, intestinales, óseas c/u | D140: 0 | E140: =IFERROR(VLOOKUP($A140,Filtro!$A$5:$K$272,3,FALSE),0) -> 0 | F140: =IFERROR(VLOOKUP($A140,Filtro!$A$5:$K$272,4,FALSE),0) -> 0 | G140: =IFERROR(VLOOKUP($A140,Filtro!$A$5:$K$272,5,FALSE),0) -> 0
A141: 80302040 | B141: 0302040 | C141: Fosfatasas alcalinas totales | D141: 47 | E141: =IFERROR(VLOOKUP($A141,Filtro!$A$5:$K$272,3,FALSE),0) -> 0 | F141: =IFERROR(VLOOKUP($A141,Filtro!$A$5:$K$272,4,FALSE),0) -> 47 | G141: =IFERROR(VLOOKUP($A141,Filtro!$A$5:$K$272,5,FALSE),0) -> 1,341
A142: 80302041 | B142: 0302041 | C142: Fosfolípidos | D142: 0 | E142: =IFERROR(VLOOKUP($A142,Filtro!$A$5:$K$272,3,FALSE),0) -> 0 | F142: =IFERROR(VLOOKUP($A142,Filtro!$A$5:$K$272,4,FALSE),0) -> 0 | G142: =IFERROR(VLOOKUP($A142,Filtro!$A$5:$K$272,5,FALSE),0) -> 0
A143: 80302042 | B143: 0302042 | C143: Fósforo (fosfatos) en sangre | D143: 0 | E143: =IFERROR(VLOOKUP($A143,Filtro!$A$5:$K$272,3,FALSE),0) -> 0 | F143: =IFERROR(VLOOKUP($A143,Filtro!$A$5:$K$272,4,FALSE),0) -> 0 | G143: =IFERROR(VLOOKUP($A143,Filtro!$A$5:$K$272,5,FALSE),0) -> 193
A144: 80302043 | B144: 0302043 | C144: Galactosa | D144: 0 | E144: =IFERROR(VLOOKUP($A144,Filtro!$A$5:$K$272,3,FALSE),0) -> 0 | F144: =IFERROR(VLOOKUP($A144,Filtro!$A$5:$K$272,4,FALSE),0) -> 0 | G144: =IFERROR(VLOOKUP($A144,Filtro!$A$5:$K$272,5,FALSE),0) -> 0
A145: 80302044 | B145: 0302044 | C145: Galactosa, curva de tolerancia, (mínimo cuatro determinaciones) (no incluye la galactosa que se administra) (incluye los valores de todas las tomas de muestras necesarias) | D145: 0 | E145: =IFERROR(VLOOKUP($A145,Filtro!$A$5:$K$272,3,FALSE),0) -> 0 | F145: =IFERROR(VLOOKUP($A145,Filtro!$A$5:$K$272,4,FALSE),0) -> 0 | G145: =IFERROR(VLOOKUP($A145,Filtro!$A$5:$K$272,5,FALSE),0) -> 0
A146: 80302045 | B146: 0302045 | C146: Gamma glutamiltranspeptidasa (GGT) | D146: 2 | E146: =IFERROR(VLOOKUP($A146,Filtro!$A$5:$K$272,3,FALSE),0) -> 0 | F146: =IFERROR(VLOOKUP($A146,Filtro!$A$5:$K$272,4,FALSE),0) -> 2 | G146: =IFERROR(VLOOKUP($A146,Filtro!$A$5:$K$272,5,FALSE),0) -> 286
A147: 80302046 | B147: 0302046 | C147: Gases y equilibrio ácido base en sangre (incluye: pH, O2, CO2, exceso de base y bicarbonato), todos o cada uno de los parámetros | D147: 0 | E147: =IFERROR(VLOOKUP($A147,Filtro!$A$5:$K$272,3,FALSE),0) -> 0 | F147: =IFERROR(VLOOKUP($A147,Filtro!$A$5:$K$272,4,FALSE),0) -> 0 | G147: =IFERROR(VLOOKUP($A147,Filtro!$A$5:$K$272,5,FALSE),0) -> 0
A148: 80302047 | B148: 0302047 | C148: Glucosa en sangre | D148: 11,416 | E148: =IFERROR(VLOOKUP($A148,Filtro!$A$5:$K$272,3,FALSE),0) -> 447 | F148: =IFERROR(VLOOKUP($A148,Filtro!$A$5:$K$272,4,FALSE),0) -> 10,969 | G148: =IFERROR(VLOOKUP($A148,Filtro!$A$5:$K$272,5,FALSE),0) -> 22,408
A149: 80302048 | B149: 0302048 | C149: Glucosa, Prueba de Tolerancia a la Glucosa Oral (PTGO), (dos determinaciones) (no incluye la glucosa que se administra) (incluye el valor de las dos tomas de muestras) | D149: 832 | E149: =IFERROR(VLOOKUP($A149,Filtro!$A$5:$K$272,3,FALSE),0) -> 0 | F149: =IFERROR(VLOOKUP($A149,Filtro!$A$5:$K$272,4,FALSE),0) -> 832 | G149: =IFERROR(VLOOKUP($A149,Filtro!$A$5:$K$272,5,FALSE),0) -> 1,953
A150: 80302050 | B150: 0302050 | C150: Adenosindeaminasa en sangre u otro fluído biológico. | D150: 0 | E150: =IFERROR(VLOOKUP($A150,Filtro!$A$5:$K$272,3,FALSE),0) -> 0 | F150: =IFERROR(VLOOKUP($A150,Filtro!$A$5:$K$272,4,FALSE),0) -> 0 | G150: =IFERROR(VLOOKUP($A150,Filtro!$A$5:$K$272,5,FALSE),0) -> 3
A151: 80302051 | B151: 0302051 | C151: Lactosa, curva de tolerancia, (mínimo cuatro determinaciones) (no incluye la lactosa que se administra) (incluye los valores de todas las tomas de muestras necesarias) | D151: 0 | E151: =IFERROR(VLOOKUP($A151,Filtro!$A$5:$K$272,3,FALSE),0) -> 0 | F151: =IFERROR(VLOOKUP($A151,Filtro!$A$5:$K$272,4,FALSE),0) -> 0 | G151: =IFERROR(VLOOKUP($A151,Filtro!$A$5:$K$272,5,FALSE),0) -> 7
A152: 80302052 | B152: 0302052 | C152: Leucinaminopeptidasa (LAP) | D152: 0 | E152: =IFERROR(VLOOKUP($A152,Filtro!$A$5:$K$272,3,FALSE),0) -> 0 | F152: =IFERROR(VLOOKUP($A152,Filtro!$A$5:$K$272,4,FALSE),0) -> 0 | G152: =IFERROR(VLOOKUP($A152,Filtro!$A$5:$K$272,5,FALSE),0) -> 0
A153: 80302053 | B153: 0302053 | C153: Lipasa | D153: 0 | E153: =IFERROR(VLOOKUP($A153,Filtro!$A$5:$K$272,3,FALSE),0) -> 0 | F153: =IFERROR(VLOOKUP($A153,Filtro!$A$5:$K$272,4,FALSE),0) -> 0 | G153: =IFERROR(VLOOKUP($A153,Filtro!$A$5:$K$272,5,FALSE),0) -> 2
A154: 80302069 | B154: 0302069 | C154: Lípidos totales (proc. aut.) | D154: 0 | E154: =IFERROR(VLOOKUP($A154,Filtro!$A$5:$K$272,3,FALSE),0) -> 0 | F154: =IFERROR(VLOOKUP($A154,Filtro!$A$5:$K$272,4,FALSE),0) -> 0 | G154: =IFERROR(VLOOKUP($A154,Filtro!$A$5:$K$272,5,FALSE),0) -> 828
A155: 80302054 | B155: 0302054 | C155: Lipoproteínas, electroforesis de (incluye lípidos totales) | D155: 0 | E155: =IFERROR(VLOOKUP($A155,Filtro!$A$5:$K$272,3,FALSE),0) -> 0 | F155: =IFERROR(VLOOKUP($A155,Filtro!$A$5:$K$272,4,FALSE),0) -> 0 | G155: =IFERROR(VLOOKUP($A155,Filtro!$A$5:$K$272,5,FALSE),0) -> 7
A156: 80302055 | B156: 0302055 | C156: Litio | D156: 0 | E156: =IFERROR(VLOOKUP($A156,Filtro!$A$5:$K$272,3,FALSE),0) -> 0 | F156: =IFERROR(VLOOKUP($A156,Filtro!$A$5:$K$272,4,FALSE),0) -> 0 | G156: =IFERROR(VLOOKUP($A156,Filtro!$A$5:$K$272,5,FALSE),0) -> 0
A157: 80302056 | B157: 0302056 | C157: Magnesio | D157: 0 | E157: =IFERROR(VLOOKUP($A157,Filtro!$A$5:$K$272,3,FALSE),0) -> 0 | F157: =IFERROR(VLOOKUP($A157,Filtro!$A$5:$K$272,4,FALSE),0) -> 0 | G157: =IFERROR(VLOOKUP($A157,Filtro!$A$5:$K$272,5,FALSE),0) -> 0
A158: 80302057 | B158: 0302057 | C158: Nitrógeno ureico y/o úrea en sangre | D158: 5,009 | E158: =IFERROR(VLOOKUP($A158,Filtro!$A$5:$K$272,3,FALSE),0) -> 0 | F158: =IFERROR(VLOOKUP($A158,Filtro!$A$5:$K$272,4,FALSE),0) -> 5,009 | G158: =IFERROR(VLOOKUP($A158,Filtro!$A$5:$K$272,5,FALSE),0) -> 7,271
A159: 80302058 | B159: 0302058 | C159: Osmolalidad en sangre | D159: 0 | E159: =IFERROR(VLOOKUP($A159,Filtro!$A$5:$K$272,3,FALSE),0) -> 0 | F159: =IFERROR(VLOOKUP($A159,Filtro!$A$5:$K$272,4,FALSE),0) -> 0 | G159: =IFERROR(VLOOKUP($A159,Filtro!$A$5:$K$272,5,FALSE),0) -> 0
A160: 80302075 | B160: 0302075 | C160: Perfil bioquímico (determinación automatizada de 12 parámetros) | D160: 2 | E160: =IFERROR(VLOOKUP($A160,Filtro!$A$5:$K$272,3,FALSE),0) -> 0 | F160: =IFERROR(VLOOKUP($A160,Filtro!$A$5:$K$272,4,FALSE),0) -> 2 | G160: =IFERROR(VLOOKUP($A160,Filtro!$A$5:$K$272,5,FALSE),0) -> 303
A161: 80302059 | B161: 0302059 | C161: Proteínas fraccionadas albúmina/globulina (incluye código 03-02-060) | D161: 189 | E161: =IFERROR(VLOOKUP($A161,Filtro!$A$5:$K$272,3,FALSE),0) -> 0 | F161: =IFERROR(VLOOKUP($A161,Filtro!$A$5:$K$272,4,FALSE),0) -> 189 | G161: =IFERROR(VLOOKUP($A161,Filtro!$A$5:$K$272,5,FALSE),0) -> 0
A162: 80302060 | B162: 0302060 | C162: Proteínas totales o albúminas, c/u en sangre | D162: 171 | E162: =IFERROR(VLOOKUP($A162,Filtro!$A$5:$K$272,3,FALSE),0) -> 0 | F162: =IFERROR(VLOOKUP($A162,Filtro!$A$5:$K$272,4,FALSE),0) -> 171 | G162: =IFERROR(VLOOKUP($A162,Filtro!$A$5:$K$272,5,FALSE),0) -> 618
A163: 80302061 | B163: 0302061 | C163: Proteínas, electroforesis (incluye cód. 03-02-060) | D163: 0 | E163: =IFERROR(VLOOKUP($A163,Filtro!$A$5:$K$272,3,FALSE),0) -> 0 | F163: =IFERROR(VLOOKUP($A163,Filtro!$A$5:$K$272,4,FALSE),0) -> 0 | G163: =IFERROR(VLOOKUP($A163,Filtro!$A$5:$K$272,5,FALSE),0) -> 0
A164: 80302062 | B164: 0302062 | C164: Salicilemia cuantitativa | D164: 0 | E164: =IFERROR(VLOOKUP($A164,Filtro!$A$5:$K$272,3,FALSE),0) -> 0 | F164: =IFERROR(VLOOKUP($A164,Filtro!$A$5:$K$272,4,FALSE),0) -> 0 | G164: =IFERROR(VLOOKUP($A164,Filtro!$A$5:$K$272,5,FALSE),0) -> 0
A165: 80302076 | B165: 0302076 | C165: Perfil Hepático (incluye tiempo de protrombina, bilirrubina total y conjugada, fosfatasas alcalinas totales, GGT, transaminasas GOT/AST y GPT/ALT) | D165: 4,753 | E165: =IFERROR(VLOOKUP($A165,Filtro!$A$5:$K$272,3,FALSE),0) -> 0 | F165: =IFERROR(VLOOKUP($A165,Filtro!$A$5:$K$272,4,FALSE),0) -> 4,753 | G165: =IFERROR(VLOOKUP($A165,Filtro!$A$5:$K$272,5,FALSE),0) -> 4,541
A166: 80302063 | B166: 0302063 | C166: Transaminasas, oxalacética (GOT/AST), Pirúvica (GPT/ALT), c/u | D166: =SUM(E166:F166) -> 43 | E166: =IFERROR(VLOOKUP($A166,Filtro!$A$5:$K$272,3,FALSE),0) -> 0 | F166: =IFERROR(VLOOKUP($A166,Filtro!$A$5:$K$272,4,FALSE),0) -> 43 | G166: =IFERROR(VLOOKUP($A166,Filtro!$A$5:$K$272,5,FALSE),0) -> 2,931
A167: 80302064 | B167: 0302064 | C167: Triglicéridos (proc. aut.) | D167: 257 | E167: =IFERROR(VLOOKUP($A167,Filtro!$A$5:$K$272,3,FALSE),0) -> 0 | F167: =IFERROR(VLOOKUP($A167,Filtro!$A$5:$K$272,4,FALSE),0) -> 257 | G167: =IFERROR(VLOOKUP($A167,Filtro!$A$5:$K$272,5,FALSE),0) -> 10,873
A168: 80302065 | B168: 0302065 | C168: Vitaminas A, B, C, D, E, etc., c/u | D168: 0 | E168: =IFERROR(VLOOKUP($A168,Filtro!$A$5:$K$272,3,FALSE),0) -> 0 | F168: =IFERROR(VLOOKUP($A168,Filtro!$A$5:$K$272,4,FALSE),0) -> 0 | G168: =IFERROR(VLOOKUP($A168,Filtro!$A$5:$K$272,5,FALSE),0) -> 28
A169: 80302066 | B169: 0302066 | C169: Xilosa, prueba de absorción (no incluye la xilosa que se administra) | D169: 0 | E169: =IFERROR(VLOOKUP($A169,Filtro!$A$5:$K$272,3,FALSE),0) -> 0 | F169: =IFERROR(VLOOKUP($A169,Filtro!$A$5:$K$272,4,FALSE),0) -> 0 | G169: =IFERROR(VLOOKUP($A169,Filtro!$A$5:$K$272,5,FALSE),0) -> 0
B170: TOTAL | D170: =SUM(D101:D169) -> 61,089 | E170: =SUM(E101:E169) -> 447 | F170: =SUM(F101:F169) -> 60,642 | G170: =SUM(G101:G169) -> 128,571
B172: EXÁMENES HORMONALES
A173: 80303015 | B173: 0303015 | C173: Hormona folículo estimulante (FSH) | D173: =SUM(E173:F173) -> 0 | E173: =IFERROR(VLOOKUP($A173,Filtro!$A$5:$K$272,3,FALSE),0) -> 0 | F173: =IFERROR(VLOOKUP($A173,Filtro!$A$5:$K$272,4,FALSE),0) -> 0 | G173: =IFERROR(VLOOKUP($A173,Filtro!$A$5:$K$272,5,FALSE),0) -> 1,093
A174: 80303024 | B174: 0303024 | C174: Tiroestimulante (TSH), hormona (adulto, niño o R.N.) | D174: =SUM(E174:F174) -> 6,856 | E174: =IFERROR(VLOOKUP($A174,Filtro!$A$5:$K$272,3,FALSE),0) -> 0 | F174: =IFERROR(VLOOKUP($A174,Filtro!$A$5:$K$272,4,FALSE),0) -> 6,856 | G174: =IFERROR(VLOOKUP($A174,Filtro!$A$5:$K$272,5,FALSE),0) -> 13,188
A175: 80303025 | B175: 0303025 | C175: Tiroglobulina | D175: 0 | E175: =IFERROR(VLOOKUP($A175,Filtro!$A$5:$K$272,3,FALSE),0) -> 0 | F175: =IFERROR(VLOOKUP($A175,Filtro!$A$5:$K$272,4,FALSE),0) -> 0 | G175: =IFERROR(VLOOKUP($A175,Filtro!$A$5:$K$272,5,FALSE),0) -> 11
A176: 80303026 | B176: 0303026 | C176: Tiroxina libre (T4L) | D176: 5,117 | E176: =IFERROR(VLOOKUP($A176,Filtro!$A$5:$K$272,3,FALSE),0) -> 0 | F176: =IFERROR(VLOOKUP($A176,Filtro!$A$5:$K$272,4,FALSE),0) -> 5,117 | G176: =IFERROR(VLOOKUP($A176,Filtro!$A$5:$K$272,5,FALSE),0) -> 5,082
A177: 80303027 | B177: 0303027 | C177: Tiroxina o tetrayodotironina (T4) | D177: 120 | E177: =IFERROR(VLOOKUP($A177,Filtro!$A$5:$K$272,3,FALSE),0) -> 0 | F177: =IFERROR(VLOOKUP($A177,Filtro!$A$5:$K$272,4,FALSE),0) -> 120 | G177: =IFERROR(VLOOKUP($A177,Filtro!$A$5:$K$272,5,FALSE),0) -> 2
A178: 80303028 | B178: 0303028 | C178: Triyodotironina (T3) | D178: 74 | E178: =IFERROR(VLOOKUP($A178,Filtro!$A$5:$K$272,3,FALSE),0) -> 0 | F178: =IFERROR(VLOOKUP($A178,Filtro!$A$5:$K$272,4,FALSE),0) -> 74 | G178: =IFERROR(VLOOKUP($A178,Filtro!$A$5:$K$272,5,FALSE),0) -> 3
B179: TOTAL | D179: =SUM(D173:D178) -> 12,167 | E179: =SUM(E173:E178) -> 0 | F179: =SUM(F173:F178) -> 12,167 | G179: =SUM(G173:G178) -> 19,379
B181: INMUNOLÓGICOS
A182: 80305001 | B182: 0305001 | C182: Alfa -1- antitripsina cuantitativa | D182: =SUM(E182:F182) -> 0 | E182: =IFERROR(VLOOKUP($A182,Filtro!$A$5:$K$272,3,FALSE),0) -> 0 | F182: =IFERROR(VLOOKUP($A182,Filtro!$A$5:$K$272,4,FALSE),0) -> 0 | G182: =IFERROR(VLOOKUP($A182,Filtro!$A$5:$K$272,5,FALSE),0) -> 0
A183: 80305002 | B183: 0305002 | C183: Alfa -2- macroglobulina | D183: =SUM(E183:F183) -> 0 | E183: =IFERROR(VLOOKUP($A183,Filtro!$A$5:$K$272,3,FALSE),0) -> 0 | F183: =IFERROR(VLOOKUP($A183,Filtro!$A$5:$K$272,4,FALSE),0) -> 0 | G183: =IFERROR(VLOOKUP($A183,Filtro!$A$5:$K$272,5,FALSE),0) -> 0
A184: 80305003 | B184: 0305003 | C184: Alfa fetoproteínas | D184: 0 | E184: =IFERROR(VLOOKUP($A184,Filtro!$A$5:$K$272,3,FALSE),0) -> 0 | F184: =IFERROR(VLOOKUP($A184,Filtro!$A$5:$K$272,4,FALSE),0) -> 0 | G184: =IFERROR(VLOOKUP($A184,Filtro!$A$5:$K$272,5,FALSE),0) -> 0
A185: 80305004 | B185: 0305004 | C185: Tamizaje de Anticuerpos anti antígenos nucleares extractables (a- ENA: Sm, RNP, Ro, La, Scl- 70 y Jo- 1) | D185: 0 | E185: =IFERROR(VLOOKUP($A185,Filtro!$A$5:$K$272,3,FALSE),0) -> 0 | F185: =IFERROR(VLOOKUP($A185,Filtro!$A$5:$K$272,4,FALSE),0) -> 0 | G185: =IFERROR(VLOOKUP($A185,Filtro!$A$5:$K$272,5,FALSE),0) -> 1
A186: 80305005 | B186: 0305005 | C186: Anticuerpos antinucleares (ANA), antimitocondriales, anti DNA (ADNA), anti músculo liso, anticentrómero, u otros, c/u. | D186: 0 | E186: =IFERROR(VLOOKUP($A186,Filtro!$A$5:$K$272,3,FALSE),0) -> 0 | F186: =IFERROR(VLOOKUP($A186,Filtro!$A$5:$K$272,4,FALSE),0) -> 0 | G186: =IFERROR(VLOOKUP($A186,Filtro!$A$5:$K$272,5,FALSE),0) -> 304
A187: 80305006 | B187: 0305006 | C187: Anticuerpos atípicos, pannel de identificación | D187: 0 | E187: =IFERROR(VLOOKUP($A187,Filtro!$A$5:$K$272,3,FALSE),0) -> 0 | F187: =IFERROR(VLOOKUP($A187,Filtro!$A$5:$K$272,4,FALSE),0) -> 0 | G187: =IFERROR(VLOOKUP($A187,Filtro!$A$5:$K$272,5,FALSE),0) -> 0
A188: 80305007 | B188: 0305007 | C188: Anticuerpos específicos y otros autoanticuerpos (anticuerpos antitiroídeos: anticuerpos antimicrosomales y antitiroglobulinas y otros anticuerpos: prostático, espermios, etc.) c/u | D188: 0 | E188: =IFERROR(VLOOKUP($A188,Filtro!$A$5:$K$272,3,FALSE),0) -> 0 | F188: =IFERROR(VLOOKUP($A188,Filtro!$A$5:$K$272,4,FALSE),0) -> 0 | G188: =IFERROR(VLOOKUP($A188,Filtro!$A$5:$K$272,5,FALSE),0) -> 0
A189: 80305008 | B189: 0305008 | C189: Antiestreptolisina O, por técnica de látex | D189: 0 | E189: =IFERROR(VLOOKUP($A189,Filtro!$A$5:$K$272,3,FALSE),0) -> 0 | F189: =IFERROR(VLOOKUP($A189,Filtro!$A$5:$K$272,4,FALSE),0) -> 0 | G189: =IFERROR(VLOOKUP($A189,Filtro!$A$5:$K$272,5,FALSE),0) -> 0
A190: 80305009 | B190: 0305009 | C190: Antígeno carcinoembrionario (CEA) | D190: 0 | E190: =IFERROR(VLOOKUP($A190,Filtro!$A$5:$K$272,3,FALSE),0) -> 0 | F190: =IFERROR(VLOOKUP($A190,Filtro!$A$5:$K$272,4,FALSE),0) -> 0 | G190: =IFERROR(VLOOKUP($A190,Filtro!$A$5:$K$272,5,FALSE),0) -> 1
A191: 80305070 | B191: 0305070 | C191: Antígeno prostático específico | D191: 305 | E191: =IFERROR(VLOOKUP($A191,Filtro!$A$5:$K$272,3,FALSE),0) -> 0 | F191: =IFERROR(VLOOKUP($A191,Filtro!$A$5:$K$272,4,FALSE),0) -> 305 | G191: =IFERROR(VLOOKUP($A191,Filtro!$A$5:$K$272,5,FALSE),0) -> 1,268
A192: 80305170 | B192: 0305170 | C192: Antígeno Ca 125, Ca 15-3 y Ca 19-9, c/u | D192: 0 | E192: =IFERROR(VLOOKUP($A192,Filtro!$A$5:$K$272,3,FALSE),0) -> 0 | F192: =IFERROR(VLOOKUP($A192,Filtro!$A$5:$K$272,4,FALSE),0) -> 0 | G192: =IFERROR(VLOOKUP($A192,Filtro!$A$5:$K$272,5,FALSE),0) -> 1
A193: 80305010 | B193: 0305010 | C193: Beta-2-microglobulina | D193: 0 | E193: =IFERROR(VLOOKUP($A193,Filtro!$A$5:$K$272,3,FALSE),0) -> 0 | F193: =IFERROR(VLOOKUP($A193,Filtro!$A$5:$K$272,4,FALSE),0) -> 0 | G193: =IFERROR(VLOOKUP($A193,Filtro!$A$5:$K$272,5,FALSE),0) -> 0
A194: 80305011 | B194: 0305011 | C194: Complejos inmunes circulantes | D194: 0 | E194: =IFERROR(VLOOKUP($A194,Filtro!$A$5:$K$272,3,FALSE),0) -> 0 | F194: =IFERROR(VLOOKUP($A194,Filtro!$A$5:$K$272,4,FALSE),0) -> 0 | G194: =IFERROR(VLOOKUP($A194,Filtro!$A$5:$K$272,5,FALSE),0) -> 0
A195: 80305012 | B195: 0305012 | C195: Complemento C1Q, C2, C3, C4, etc., c/u | D195: 0 | E195: =IFERROR(VLOOKUP($A195,Filtro!$A$5:$K$272,3,FALSE),0) -> 0 | F195: =IFERROR(VLOOKUP($A195,Filtro!$A$5:$K$272,4,FALSE),0) -> 0 | G195: =IFERROR(VLOOKUP($A195,Filtro!$A$5:$K$272,5,FALSE),0) -> 2
A196: 80305013 | B196: 0305013 | C196: Complemento hemolítico (CH 50) | D196: 0 | E196: =IFERROR(VLOOKUP($A196,Filtro!$A$5:$K$272,3,FALSE),0) -> 0 | F196: =IFERROR(VLOOKUP($A196,Filtro!$A$5:$K$272,4,FALSE),0) -> 0 | G196: =IFERROR(VLOOKUP($A196,Filtro!$A$5:$K$272,5,FALSE),0) -> 0
A197: 80305014 | B197: 0305014 | C197: Crioglobulinas, precipitación en frío (cualitativa) o cuantitativa c/u | D197: 0 | E197: =IFERROR(VLOOKUP($A197,Filtro!$A$5:$K$272,3,FALSE),0) -> 0 | F197: =IFERROR(VLOOKUP($A197,Filtro!$A$5:$K$272,4,FALSE),0) -> 0 | G197: =IFERROR(VLOOKUP($A197,Filtro!$A$5:$K$272,5,FALSE),0) -> 0
A198: 80305015 | B198: 0305015 | C198: Depósito de complejos inmunes por inmunofluorescencia | D198: 0 | E198: =IFERROR(VLOOKUP($A198,Filtro!$A$5:$K$272,3,FALSE),0) -> 0 | F198: =IFERROR(VLOOKUP($A198,Filtro!$A$5:$K$272,4,FALSE),0) -> 0 | G198: =IFERROR(VLOOKUP($A198,Filtro!$A$5:$K$272,5,FALSE),0) -> 0
A199: 80305016 | B199: 0305016 | C199: Depósito de complemento por inmunofluorescencia (C3, C4), c/u | D199: 0 | E199: =IFERROR(VLOOKUP($A199,Filtro!$A$5:$K$272,3,FALSE),0) -> 0 | F199: =IFERROR(VLOOKUP($A199,Filtro!$A$5:$K$272,4,FALSE),0) -> 0 | G199: =IFERROR(VLOOKUP($A199,Filtro!$A$5:$K$272,5,FALSE),0) -> 0
A200: 80305017 | B200: 0305017 | C200: Depósito de fibrinógeno por inmunofluorescencia | D200: 0 | E200: =IFERROR(VLOOKUP($A200,Filtro!$A$5:$K$272,3,FALSE),0) -> 0 | F200: =IFERROR(VLOOKUP($A200,Filtro!$A$5:$K$272,4,FALSE),0) -> 0 | G200: =IFERROR(VLOOKUP($A200,Filtro!$A$5:$K$272,5,FALSE),0) -> 0
A201: 80305018 | B201: 0305018 | C201: Depósito de inmunoglobulina por inmunofluorescencia (IgG, IgA, IgM) c/u | D201: 0 | E201: =IFERROR(VLOOKUP($A201,Filtro!$A$5:$K$272,3,FALSE),0) -> 0 | F201: =IFERROR(VLOOKUP($A201,Filtro!$A$5:$K$272,4,FALSE),0) -> 0 | G201: =IFERROR(VLOOKUP($A201,Filtro!$A$5:$K$272,5,FALSE),0) -> 0
A202: 80305019 | B202: 0305019 | C202: Factor reumatoídeo por técnica de látex u otras similares | D202: 271 | E202: =IFERROR(VLOOKUP($A202,Filtro!$A$5:$K$272,3,FALSE),0) -> 0 | F202: =IFERROR(VLOOKUP($A202,Filtro!$A$5:$K$272,4,FALSE),0) -> 271 | G202: =IFERROR(VLOOKUP($A202,Filtro!$A$5:$K$272,5,FALSE),0) -> 596
A203: 80305020 | B203: 0305020 | C203: Factor reumatoídeo por técnica Scat, Waaler Rose, nefelométricas y/o turbidimétricas | D203: 2 | E203: =IFERROR(VLOOKUP($A203,Filtro!$A$5:$K$272,3,FALSE),0) -> 0 | F203: =IFERROR(VLOOKUP($A203,Filtro!$A$5:$K$272,4,FALSE),0) -> 2 | G203: =IFERROR(VLOOKUP($A203,Filtro!$A$5:$K$272,5,FALSE),0) -> 85
A204: 80305021 | B204: 0305021 | C204: Inhibidor de C1Q, C2 y C3, c/u | D204: 0 | E204: =IFERROR(VLOOKUP($A204,Filtro!$A$5:$K$272,3,FALSE),0) -> 0 | F204: =IFERROR(VLOOKUP($A204,Filtro!$A$5:$K$272,4,FALSE),0) -> 0 | G204: =IFERROR(VLOOKUP($A204,Filtro!$A$5:$K$272,5,FALSE),0) -> 0
A205: 80305025 | B205: 0305025 | C205: Inmunofijación de inmunoglobulina, c/u | D205: 0 | E205: =IFERROR(VLOOKUP($A205,Filtro!$A$5:$K$272,3,FALSE),0) -> 0 | F205: =IFERROR(VLOOKUP($A205,Filtro!$A$5:$K$272,4,FALSE),0) -> 0 | G205: =IFERROR(VLOOKUP($A205,Filtro!$A$5:$K$272,5,FALSE),0) -> 0
A206: 80305026 | B206: 0305026 | C206: Inmunoglobulina IgA secretora | D206: 0 | E206: =IFERROR(VLOOKUP($A206,Filtro!$A$5:$K$272,3,FALSE),0) -> 0 | F206: =IFERROR(VLOOKUP($A206,Filtro!$A$5:$K$272,4,FALSE),0) -> 0 | G206: =IFERROR(VLOOKUP($A206,Filtro!$A$5:$K$272,5,FALSE),0) -> 0
... 406 more rows
